Cogmind - Beta 10 @@@ ROGUE MODE // 2020.09.20 @ 04:01:45 Player: Trione Result: Establishing 0b11! Performance ------------- Evolutions (9) 4500 Regions Visited (42) 8400 Robots Destroyed (1141) 5705 Value Destroyed (59598) 59598 Prototype IDs (253) 5060 Alien Tech Used (17) 3400 Bonus (67322) 67322 TOTAL SCORE: 153985 Bonus ------- High Alert Combat Kills 14527 Follower Combat Kills 2111 Network Hubs Disabled 800 Met Data Miner 300 Used Data Conduit 3000 Met Zhirov 300 Met Warlord at Base 500 MAIN.C Attacked Warlord 500 A7 Reached Mainframe 300 Met R17 at Cetus 500 Read Decrypted Archives 300 Scanned by Researcher 500 Pursued by Intercept 4500 Recovered Sigix Corpse 1000 Destroyed MAIN.C Guards 500 Met MAIN.C 5000 Hacked MAIN.C 300 Destroyed MAIN.C Shell 5000 Destroyed MAIN.C 10000 Met Architect 300 Started Test 138-B 500 Destroyed A8 300 Destroyed A6 400 Destroyed A5 500 Destroyed A4 700 Destroyed A3 800 Destroyed A2 1000 Destroyed Architect 15000 Win 3000 Friendly Fire -5116 Cogmind --------- Core Integrity 893/1600 Matter 280/300 Energy 618/630 System Corruption 0% Temperature Cool (6) Movement Treading (155) Ox1 Location 0b11 Command Parts ------- > --- POWER (2) -------- Zero-point Reactor Zero-point Reactor > --- PROPULSION (3) --- Experimental Biometal Heavy Treads Experimental Biometal Medium Treads > --- UTILITY (17) ----- High-capacity Storage Unit High-capacity Storage Unit High-capacity Storage Unit High-capacity Storage Unit Quantum Shading Machine Experimental Targeting Computer Experimental Target Analyzer Experimental Armor Integrity Analyzer Quantum Capacitor Experimental Core Shielding SHELL Armor AEGIS Remote Shield Architect God Chip A Architect God Chip D > --- WEAPON (3) ------- Sigix Quantum Sheargun Sigix Quantum Sheargun Modified Quantum Sheargun > --- INVENTORY (36) --- Improved Quantum Reactor Experimental Biometal Heavy Treads Experimental Coolant Injector Experimental Energy Well (1000) Experimental Matter Compressor (500) Advanced Kinecellerator Experimental Weapon Cycler Damper Plating Experimental Powered Armor Experimental Focal Shield Thermal Barrier EM Dispersion Field Experimental Force Field Architect God Chip A Architect God Chip A Architect God Chip A Architect God Chip D Architect God Chip D Architect God Chip D Enhanced Gamma Rifle Enhanced Gamma Rifle Enhanced Gamma Rifle Sigix Quantum Sheargun EMDS Vortex Driver Vortex Driver Cooled Nova Cannon Linked Autogun Hypervelocity Multirail Experimental Remote Datajack Sigix Corpse Peak State ------------ > --- POWER ------------ Zero-point Reactor Zero-point Reactor > --- PROPULSION ------- Experimental Biometal Heavy Treads Experimental Biometal Medium Treads > --- UTILITY ---------- High-capacity Storage Unit High-capacity Storage Unit High-capacity Storage Unit High-capacity Storage Unit Quantum Shading Machine Experimental Targeting Computer Experimental Target Analyzer Experimental Armor Integrity Analyzer Quantum Capacitor Experimental Core Shielding SHELL Armor AEGIS Remote Shield Architect God Chip A Architect God Chip D > --- WEAPON ----------- Sigix Quantum Sheargun Sigix Quantum Sheargun Modified Quantum Sheargun > --- INVENTORY -------- Improved Quantum Reactor Experimental Biometal Heavy Treads Experimental Coolant Injector Experimental Energy Well Experimental Matter Compressor Advanced Kinecellerator Experimental Weapon Cycler Damper Plating Experimental Powered Armor Experimental Focal Shield Thermal Barrier EM Dispersion Field Experimental Force Field Architect God Chip A Architect God Chip A Architect God Chip A Architect God Chip D Architect God Chip D High-powered Transdimensional Reconstructor Enhanced Gamma Rifle Enhanced Gamma Rifle Enhanced Gamma Rifle Sigix Quantum Sheargun EMDS Vortex Driver Vortex Driver Cooled Nova Cannon Linked Autogun Hypervelocity Multirail Experimental Remote Datajack Sigix Corpse [Rating: 248] Favorites ----------- Power Quantum Reactor Engine Heavy Ion Engine Power Core Micro Fission Core Reactor Quantum Reactor Propulsion Centrium Wheel Treads Light Treads Wheel Centrium Wheel Hover Unit Aerolev Unit Flight Unit Improved VTOL Module Utility High-capacity Storage Unit Device Experimental Sensor Array Storage High-capacity Storage Unit Processor Experimental Targeting Computer Hackware Deep Network Scanner Protection SHELL Armor Artifact Matter Drive Weapon EMDS Energy Gun Sigix Quantum Sheargun Energy Cannon EMDS Ballistic Gun Hypervelocity Gauss Rifle Ballistic Cannon Bore Cannon Launcher Heavy Missile Launcher Special Weapon Experimental Remote Datajack Slashing Weapon Power Sword Special Melee Weapon Advanced Datajack Build | -11 -10 -10 -9 -9 -9 -8 -8 -8 -7 -7 -7 -7 -7 -7 -6 -6 -6 -6 -6 -6 -5 -5 -5 -5 -5 -5 -4 -4 -4 -4 -4 -4 -4 -3 -3 -3 -3 -2 -2 -1 -1 -1 ------- Run | Scr Mat Min Mat Min Exi Min Mat Sto Fac Was Fac Low Low Dat Pro Fac Ext Cet Arc Hub Fac Was Fac Upp Upp Zhi Pro Fac Was Fac Upp Upp War Pro Res Qua Sec Res Tes Acc Com Ac0 Slots Evolved 18 | . . . 2 . . . 2 . 2 . . . . . . 2 . . . . 2 . . . . . . 2 . . . . . . 2 . . 2 . 2 . . Power 1 | . . . . . . . . . 1 . . . . . . . . . . . . . . . . . . . . . . . . . . . . . . . . . Propulsion 1 | . . . . . . . . . . . . . . . . . . . . . . . . . . . . . . . . . . . . . . . . 1 . . Utility 15 | . . . 2 . . . 2 . 1 . . . . . . 2 . . . . 2 . . . . . . 2 . . . . . . 2 . . 1 . 1 . . Weapon 1 | . . . . . . . . . . . . . . . . . . . . . . . . . . . . . . . . . . . . . . 1 . . . . Parts Attached 2064 | 6 10 12 45 13 4 13 28 52 55 12 85 20 8 15 21 129 35 21 3 71 37 35 95 16 12 3 14 130 22 46 29 11 11 29 100 129 243 38 122 66 112 106 Power 48 | 1 2 1 2 . . . 1 1 1 2 2 . . 1 . 1 2 2 . 3 1 . 1 1 . . . 2 2 . . . 3 . 2 4 2 . . . 5 3 Engine 7 | 1 2 . 2 . . . 1 1 . . . . . . . . . . . . . . . . . . . . . . . . . . . . . . . . . . Core 8 | . . 1 . . . . . . 1 . 1 . . . . . 2 . . . . . 1 1 . . . 1 . . . . . . . . . . . . . . Reactor 33 | . . . . . . . . . . 2 1 . . 1 . 1 . 2 . 3 1 . . . . . . 1 2 . . . 3 . 2 4 2 . . . 5 3 Propulsion 142 | 2 1 2 5 2 . 3 8 7 10 1 1 . . 2 . 2 1 2 1 3 1 . 3 . . . . 9 3 . . . . . 7 6 17 3 5 8 23 4 Treads 63 | . . 2 5 2 . . 6 5 1 . . . . 1 . 2 . 2 . 2 . . 2 . . . . 3 1 . . . . . 2 2 6 1 3 2 9 4 Leg . | . . . . . . . . . . . . . . . . . . . . . . . . . . . . . . . . . . . . . . . . . . . Wheel 76 | 2 1 . . . . 3 2 . 9 1 1 . . 1 . . 1 . 1 1 1 . 1 . . . . 6 2 . . . . . 5 4 11 2 2 6 13 . Hover 2 | . . . . . . . . 1 . . . . . . . . . . . . . . . . . . . . . . . . . . . . . . . . 1 . Flight 1 | . . . . . . . . 1 . . . . . . . . . . . . . . . . . . . . . . . . . . . . . . . . . . Utility 1051 | 1 3 4 6 2 2 1 7 10 31 6 59 16 5 6 12 83 17 6 1 34 18 21 57 6 7 3 9 65 8 30 16 7 2 13 53 70 136 28 68 44 41 37 Device 646 | . 1 3 . 2 1 1 2 2 17 2 43 7 2 1 9 52 13 4 1 16 11 15 36 4 3 . 6 31 6 20 12 4 2 10 34 40 85 22 44 33 19 30 Storage 59 | 1 2 1 1 . 1 . 3 . 5 1 . 2 1 2 . 4 . . . 1 1 . . . . . . 6 . . . . . . 5 4 7 1 4 . 6 . Processor 15 | . . . . . . . 1 1 1 1 . . . 1 . . . 1 . . 1 1 1 . . . . . 1 . . . . . . . . . . . 5 . Hackware 8 | . . . . . . . . . . . . . . . . 2 . . . . . . 1 . . . . 1 . . . . . . . . 1 . 1 . . 2 Protection 322 | . . . 5 . . . 1 7 8 2 16 7 2 2 3 25 4 1 . 17 5 5 19 2 4 3 3 27 1 10 4 3 . 3 14 25 43 5 19 11 11 5 Artifact 1 | . . . . . . . . . . . . . . . . . . . . . . . . . . . . . . . . . . . . 1 . . . . . . Weapon 823 | 2 4 5 32 9 2 9 12 34 13 3 23 4 3 6 9 43 15 11 1 31 17 14 34 9 5 . 5 54 9 16 13 4 6 16 38 49 88 7 49 14 43 62 Energy Gun 98 | 1 . 1 3 2 1 1 1 3 . . . . . . . 11 . 2 . 2 . . . . . . . . . . . . 1 . . 4 6 4 10 2 10 33 Energy Cannon 256 | . 2 2 8 1 1 1 5 4 1 . 1 . . . . . . . . 3 5 . 7 5 3 . 3 33 1 14 5 2 2 6 22 29 48 2 16 5 10 9 Ballistic Gun 208 | 1 1 1 9 3 . 4 . 15 8 2 11 2 1 2 1 12 5 2 . 17 4 4 13 1 . . 1 9 6 . 2 . . 1 9 10 13 1 5 2 18 12 Ballistic Cannon 26 | . . . . . . . 2 3 . . . . . . . 3 3 . . . . 4 3 . . . . . . . . . . . . . . . 1 . 2 5 Launcher 85 | . 1 1 12 3 . 3 4 8 2 . 4 2 . 2 4 1 3 5 . . 2 1 . 2 1 . 1 3 . 1 3 1 . 6 1 . 5 . 1 1 . 1 Special Weapon 38 | . . . . . . . . . . . . . . . . . . . . . . . . . . . . 2 . . 2 1 2 1 2 3 8 . 10 2 3 2 Impact Weapon . | . . . . . . . . . . . . . . . . . . . . . . . . . . . . . . . . . . . . . . . . . . . Slashing Weapon 102 | . . . . . . . . . 2 1 7 . 2 1 4 13 4 2 . 9 4 5 11 1 1 . . 7 1 . 1 . 1 2 4 3 8 . 6 2 . . Piercing Weapon . | . . . . . . . . . . . . . . . . . . . . . . . . . . . . . . . . . . . . . . . . . . . Special Melee Weapon 10 | . . . . . . . . 1 . . . . . 1 . 3 . . 1 . 2 . . . . . . . 1 1 . . . . . . . . . . . . Unidentified Prototypes 49 | . . 1 2 . . . . 8 . . . . . . . 1 . . . . . . . . . 1 . 1 . . 1 . 2 . . 5 3 . 4 1 9 10 Parts Lost 62 | . 1 4 9 5 . 4 6 2 . . 1 1 . 1 . 2 . . . 2 . . 1 . . . . 1 . . . . . 1 . 2 4 2 2 1 1 9 Power 10 | . . 1 1 . . 1 . . . . . . . 1 . 1 . . . . . . 1 . . . . . . . . . . 1 . 1 1 . . . . 1 Propulsion 11 | . 1 1 2 2 . 1 3 . . . . . . . . . . . . . . . . . . . . . . . . . . . . . . . . . . 1 Utility 26 | . . 1 3 2 . 2 1 1 . . . 1 . . . . . . . 1 . . . . . . . 1 . . . . . . . 1 3 2 2 . 1 4 Weapon 15 | . . 1 3 1 . . 2 1 . . 1 . . . . 1 . . . 1 . . . . . . . . . . . . . . . . . . . 1 . 3 Highest Loss Streak 4 | . 1 4 3 3 . 2 2 1 . . 1 1 . 1 . 1 . . . 2 . . 1 . . . . 1 . . . . . 1 . 1 2 1 1 1 1 4 Average Slot Usage (%) 83 | . 99 99 97 94 79 94 88 90 87 81 82 81 83 73 84 81 79 77 80 76 79 85 82 83 81 81 80 80 84 86 82 84 87 86 85 86 84 82 77 75 76 79 Engine 1 | . 14 3 8 11 11 9 9 9 7 1 . . . . . . . . . . . . . . . . . . . . . . . . . . . . . . . . Core 1 | . . 9 2 . . . . . 7 4 1 7 7 7 7 6 8 6 . . . . . 5 5 5 5 4 . . . . . . . . . . . . . . Reactor 6 | . . . . . . . . . . 8 13 7 7 7 7 6 3 5 13 12 11 11 10 5 5 5 5 5 9 10 10 10 9 9 8 8 7 4 4 4 4 7 Treads 4 | . . 19 22 22 22 11 16 18 2 . . . . 3 . 4 5 5 3 3 . . . 5 5 5 5 2 . . . . . . . . . . 3 . 5 7 Wheel 5 | . 28 8 . . . 9 1 . 9 7 7 7 7 3 7 1 . . 2 2 4 5 4 . . . . 4 9 10 10 10 10 10 6 7 8 7 . 11 3 . Device 10 | . 13 11 4 13 20 7 . 2 9 18 20 18 13 4 6 9 8 5 6 3 10 11 10 13 6 5 4 8 5 8 7 9 10 5 11 12 7 12 11 9 15 16 Storage 22 | . 14 16 22 22 22 33 33 20 14 9 15 15 15 13 23 20 20 20 20 23 23 23 23 23 23 23 23 23 26 26 26 26 26 26 25 27 30 26 28 28 21 16 Processor 9 | . . . . . . . 7 9 11 12 7 7 7 12 15 13 13 13 13 9 10 15 11 11 11 11 11 10 10 10 10 10 10 10 9 8 4 4 4 3 12 12 Hackware 2 | . . . . . . . . . . . . . . . . . . . . . . . . . . . . 4 5 5 5 5 5 5 4 4 8 8 9 6 . 1 Protection 6 | . . . 14 3 . . 2 13 7 1 . 2 6 5 . 3 5 6 6 6 5 3 5 3 9 10 11 7 5 6 5 5 5 9 7 7 7 8 5 4 5 8 Energy Gun 1 | . 5 . 3 2 2 4 . . . . . . . . . 3 . 2 6 . . . . . . . . . . . . . . . . . . 4 1 . 2 5 Energy Cannon 3 | . 12 23 7 . 1 8 15 3 . . 1 . . . . . . . . . 1 . 1 4 3 5 4 4 . 6 4 4 3 4 3 4 4 3 2 6 3 2 Ballistic Gun 3 | . 9 3 10 18 . 8 . 12 12 14 7 9 8 2 8 2 4 . . 8 2 4 4 3 . . 3 1 . . 1 . . . 1 . . 1 . . 2 . Slashing Weapon 1 | . . . . . . . . . 1 . 5 4 5 2 4 4 3 2 . 1 2 . 3 1 4 5 . . 4 . . . 1 . 1 . . . 1 . . . Naked Turns . | . . . . . . . . . . . . . . . . . . . . . . . . . . . . . . . . . . . . . . . . . . . Heaviest Build 397 | 12 25 45 53 52 52 52 135 136 125 197 188 186 178 178 180 220 217 219 206 281 278 274 281 265 264 264 252 318 303 312 310 314 305 319 357 397 390 359 383 375 391 301 Greatest Support 145 | 26 26 46 46 40 40 40 40 40 40 28 28 28 28 70 28 70 70 80 80 80 28 28 80 80 80 80 80 80 80 32 32 32 32 32 80 80 60 52 85 60 125 145 Greatest Overweight (x) 98 | . . 1 1 1 1 5 13 6 6 7 6 6 6 6 6 6 6 7 7 8 9 9 10 3 3 3 3 9 98 9 9 9 9 9 11 12 12 11 11 11 8 3 Average Overweight (x) 4 | . . . . 1 . 1 3 1 2 4 5 5 5 3 5 3 2 2 5 5 8 8 7 2 3 3 3 6 24 8 9 9 8 8 9 9 9 6 3 8 3 1 Largest Inventory Capacity 88 | 6 10 16 16 16 16 16 36 36 40 32 32 52 38 38 38 60 40 40 40 48 68 48 48 48 48 48 48 76 56 56 56 56 56 56 76 84 88 68 70 70 70 44 Average Capacity 45 | 5 7 11 16 16 16 16 35 20 17 26 32 32 32 29 38 38 40 40 40 44 48 48 48 48 48 48 48 51 56 56 56 56 56 56 59 64 66 64 66 70 48 36 Most Carried 72 | 6 10 10 16 16 16 16 23 35 24 32 32 32 35 38 38 39 40 40 40 48 48 48 48 48 48 48 48 56 56 56 56 56 56 56 63 66 72 64 70 70 70 44 Average Carried 43 | 3 6 7 12 15 14 15 15 19 17 25 31 30 30 27 38 37 39 39 39 41 47 47 47 47 47 47 47 49 55 55 55 55 55 55 56 63 64 63 65 69 47 36 Final Capacity 70 | 6 10 10 16 16 16 16 36 16 24 32 32 32 38 38 38 40 40 40 40 48 48 48 48 48 48 48 48 56 56 56 56 56 56 56 64 64 64 64 70 70 44 36 Final Carried 70 | 6 10 7 16 13 16 16 23 16 21 31 32 29 35 38 38 39 40 40 39 47 48 48 48 48 48 48 48 55 55 56 56 56 56 56 63 64 64 64 69 70 44 36 Class Distribution -------------------- 75% | Hauler-Mutant 13% | Scavenger-Mutant 7% | Mutant Dominant Class ---------------- Mutant | -10/Materials Mutant | -10/Mines Scavenger-Mutant | -9/Materials Scavenger-Mutant | -9/Mines Scavenger-Mutant | -9/Exiles Mutant | -8/Mines Hauler-Mutant | -8/Materials Mutant | -8/Storage Mutant | -7/Factory Hauler-Mutant | -7/Waste Hauler-Mutant | -7/Factory Hauler-Mutant | -7/Lower Caves Hauler-Mutant | -7/Lower Caves Hauler-Mutant | -7/Data Miner Hauler-Mutant | -6/Proximity Caves Hauler-Mutant | -6/Factory Hauler-Mutant | -6/Extension Hauler-Mutant | -6/Cetus Hauler-Mutant | -6/Archives Hauler-Mutant | -6/Hub_04(d) Hauler-Mutant | -5/Factory Hauler-Mutant | -5/Waste Hauler-Mutant | -5/Factory Hauler-Mutant | -5/Upper Caves Hauler-Mutant | -5/Upper Caves Hauler-Mutant | -5/Zhirov Hauler-Mutant | -4/Proximity Caves Hauler-Mutant | -4/Factory Hauler-Mutant | -4/Waste Hauler-Mutant | -4/Factory Hauler-Mutant | -4/Upper Caves Hauler-Mutant | -4/Upper Caves Hauler-Mutant | -4/Warlord Hauler-Mutant | -3/Proximity Caves Hauler-Mutant | -3/Research Hauler-Mutant | -3/Quarantine Hauler-Mutant | -3/Section 7 Hauler-Mutant | -2/Research Hauler-Mutant | -2/Testing Hauler-Mutant | -1/Access Hauler-Mutant | -1/Command Scavenger-Mutant | -1/Access_0 Resources | -11 -10 -10 -9 -9 -9 -8 -8 -8 -7 -7 -7 -7 -7 -7 -6 -6 -6 -6 -6 -6 -5 -5 -5 -5 -5 -5 -4 -4 -4 -4 -4 -4 -4 -3 -3 -3 -3 -2 -2 -1 -1 -1 ----------- Run | Scr Mat Min Mat Min Exi Min Mat Sto Fac Was Fac Low Low Dat Pro Fac Ext Cet Arc Hub Fac Was Fac Upp Upp Zhi Pro Fac Was Fac Upp Upp War Pro Res Qua Sec Res Tes Acc Com Ac0 Matter Collected 56805 | 263 126 136 896 476 65 263 655 1167 1203 530 1310 486 128 285 390 1704 606 337 20 1921 1001 1466 1715 322 128 122 228 4303 1087 807 538 294 143 707 2586 2635 5254 894 4880 3724 6865 4139 Remotely 17544 | . . . . . . . . . . 520 1034 140 . . 320 666 201 140 . 292 312 220 1414 172 . . 58 1103 . 397 66 64 . 217 1450 879 2364 411 2135 1688 1281 . Salvage Created 71750 | 74 588 102 2373 751 . 348 1682 2064 1967 1302 1764 569 282 468 472 2435 1057 650 80 3488 894 1961 2018 393 69 439 356 4637 2199 1789 598 418 . 857 2574 2289 6550 1507 4034 4780 5760 5112 Parts 2989 | 2 33 8 165 44 . 30 81 116 94 22 95 22 3 30 26 104 41 35 9 183 36 39 89 10 5 5 19 154 43 64 33 14 . 43 96 123 277 53 118 159 195 271 Haulers Intercepted 33 | . 2 . 6 . . . 2 5 3 . 2 . . . . . 1 . . 1 1 . . . . . . 4 . 1 . . . . 1 . 2 1 1 . . . Recyclers Shooed 50 | . 2 3 2 . . . 2 4 5 . 3 . . . . 3 . . . . . . 3 . . . . 5 . 5 . . . . 3 4 2 . 3 1 . . Parts Field Recycled . | . . . . . . . . . . . . . . . . . . . . . . . . . . . . . . . . . . . . . . . . . . . Retrieved Matter . | . . . . . . . . . . . . . . . . . . . . . . . . . . . . . . . . . . . . . . . . . . . Parts Self-Destructed 172 | . . . . . . . . . . . . 5 8 . 14 . . . . . . . . 3 2 4 8 . . . 17 4 81 26 . . . . . . . . Prevented 63 | . . . . . . . . . . . . 12 . . 7 . . . . . . . . 4 3 . 4 . . . 16 9 2 6 . . . . . . . . Kills | -11 -10 -10 -9 -9 -9 -8 -8 -8 -7 -7 -7 -7 -7 -7 -6 -6 -6 -6 -6 -6 -5 -5 -5 -5 -5 -5 -4 -4 -4 -4 -4 -4 -4 -3 -3 -3 -3 -2 -2 -1 -1 -1 ------- Run | Scr Mat Min Mat Min Exi Min Mat Sto Fac Was Fac Low Low Dat Pro Fac Ext Cet Arc Hub Fac Was Fac Upp Upp Zhi Pro Fac Was Fac Upp Upp War Pro Res Qua Sec Res Tes Acc Com Ac0 Combat Hostiles Destroyed 821 | . 8 7 46 23 . 11 25 24 13 5 22 8 1 4 13 27 8 13 . 42 7 6 28 8 4 . 10 40 6 17 13 10 . 21 24 27 76 18 43 59 51 53 Melee 12 | . . . . . . . . . 1 . 3 . . . . 3 1 . . 1 . . 1 . . . . . . . . . . . . . . . 2 . . . Guns 244 | . 1 2 10 14 . 3 3 10 9 5 6 2 1 . . 18 2 . . 35 2 5 7 . . . . 12 6 . 1 . . 2 10 7 12 9 8 2 22 18 Cannons 249 | . 5 5 13 . . . 14 7 1 . 2 . . . . 5 3 . . 6 4 1 16 2 1 . 1 15 . 13 5 3 . 4 5 13 37 6 12 23 11 16 AOE 148 | . 2 . 23 9 . 8 4 7 1 . 11 5 . . 11 . 2 6 . . . . . 4 3 . 8 1 . 1 5 4 . 13 . . 7 . 5 7 1 . Classes Destroyed 30 | 1 6 . 4 1 . . 1 1 1 1 1 1 . . . . . . . 2 . . . 1 . . . . 1 . 1 . . . 1 1 3 . 1 . 1 . Worker 76 | . 2 . 6 1 . 2 3 5 8 . 10 . . . . 3 1 . . 8 1 . 2 . . . . 2 . 1 . . . . 3 3 3 . 6 4 2 . Builder 35 | . . . 6 . . . . 3 4 . 1 . . . . 1 2 . . 3 . . . . . . . 1 . 1 . . . . 2 1 2 1 . 7 . . Tunneler 18 | . 1 . 1 1 . 3 . . 2 . 1 . . . . . 1 . . 3 . . . . . . . 3 . 1 . . . . . . . 1 . . . . Hauler 33 | . 2 . 6 . . . 2 5 3 . 2 . . . . . 1 . . 1 1 . . . . . . 4 . 1 . . . . 1 . 2 1 1 . . . Recycler 83 | 1 1 . 4 2 . 1 4 8 10 . 9 . . . . 4 4 . . 1 2 . 1 . . . . 9 . 6 . . . . 5 1 1 . 5 2 2 . Carrier 1 | . . . . . . . . . . . . . . . . . . . . . . . . . . . . . . . . . . . . . 1 . . . . . Mechanic 3 | . . . 1 . . . . 1 . . . . . . . . . . . . . . . . . . . . . . . . . . . . 1 . . . . . Operator 2 | . . . . . . . . . . . 1 . . . . . . . . . . . . . . . . . . . . . . . . . 1 . . . . . Drone 2 | . . . . . . . . 2 . . . . . . . . . . . . . . . . . . . . . . . . . . . . . . . . . . Watcher 46 | . 2 . 5 . . . 4 2 2 . 1 . . . . 3 1 . . 3 2 . 2 . . . . 5 . . . . . . . 3 2 1 1 6 1 . Swarmer 145 | . 3 6 10 10 . 8 . 7 . . 10 1 . . 7 2 3 6 . 3 . . . 5 3 . 8 . . 7 5 8 . 16 4 . 2 . 5 6 . . Saboteur 4 | . . . . . . . . . . . . . . . . . . . . 1 . . . . . . . 1 . . . . . . . . 1 . . 1 . . Grunt 228 | . 5 . 25 11 . 3 18 8 5 . 2 1 . . 4 11 3 1 . 13 2 . 11 1 . . . 12 . 1 2 . . . 4 3 26 9 17 23 7 . Brawler 20 | . . . 2 1 . . 1 . . . . 3 . . . 1 . 1 . 1 . . 1 . . . . 1 . . . . . . . 1 2 . 1 2 2 . Duelist 13 | . . . . 1 . . . . . . . 2 . . . . . . . 1 . . 1 . . . . 1 . . . . . . . 1 . . . 4 2 . Protector 7 | . . . . . . . . . . . . . . . . . . . . 2 . . . . . . . . . . . . . . . . . . . 2 3 . Researcher 6 | . . . . . . . . . . . . . . . . . . . . . . . . . . . . . . . . . . . . . 3 . 3 . . . Sentry 67 | . . . 9 . . . 5 4 3 . 3 1 . . . 6 1 . . 8 . . 4 1 . . 1 3 . 3 . . . 1 3 . 7 2 . 1 1 . Demolisher 3 | . . . . . . . . . . . . . . . . . . . . . . . . . . . . . . . . . . . . . . 2 . . 1 . Specialist 4 | . . . . . . . . . . . . . . . . . . . . . . . . . . . . . . . 3 . . . . . . . . . 1 . Hunter 65 | . . . . . . . 1 5 1 . 3 . 1 . 2 . . . . . 3 . . . 1 . . 3 . 2 2 2 . 2 4 5 4 3 4 5 12 . Programmer 118 | . . . . . . . . . 4 . 4 . . . . 5 . . . 2 2 . 7 . . . 1 13 . 4 1 . . 2 6 15 23 1 8 9 11 . Q-Series 6 | . . . . . . . . . . . . . . . . . . . . . . . . . . . . . . . . . . . . . . . 4 2 . . Behemoth 2 | . . . . . . . . . . . . . . . . . . . . . . . . . . . . . . . . . . . 1 . . . . . 1 . Compactor 17 | . . . . . . . . . . 5 . . . . . . . . . . . 6 . . . . . . 6 . . . . . . . . . . . . . Cetus Guard 5 | . . . . . . . . . . . . . . . . . . 5 . . . . . . . . . . . . . . . . . . . . . . . . S7 Guard 3 | . . . . . . . . . . . . . . . . . . . . . . . . . . . . . . . . . . . . . 3 . . . . . M Guard 2 | . . . . . . . . . . . . . . . . . . . . . . . . . . . . . . . . . . . . . . . . . 2 . Enhanced Grunt 30 | . . . . . . . . . . . . . . 4 . . . . . . . . . . . . . . . . . . . . . . . . . . . 26 Enhanced Sentry 2 | . . . . . . . . . . . . . . . . . . . . . . . . . . . . . . . . . . . . . . . . . . 2 Enhanced Hunter 8 | . . . . . . . . . . . . . . . . . . . . . . . . . . . . . . . . . . . . . . . . . . 8 Enhanced Programmer 10 | . . . . . . . . . . . . . . . . . . . . . . . . . . . . . . . . . . . . . . . . . . 10 Lightning 9 | . . . . . . . . . . . . . . . . . . . . 9 . . . . . . . . . . . . . . . . . . . . . . Tracker 15 | . . . . . . . . . . . . . . . . 1 . . . 1 . . 2 . . . . 3 . . . . . . 1 . 3 . 2 2 . . Combat Programmer 18 | . . . . . . . . . . . . . . . . 1 . . . 1 . . 2 . . . . 3 . . . . . . 1 1 3 . 2 2 2 . Executioner 3 | . . . . . . . . . . . . . . . . . . . . . . . . . . . . . . . . . . . . . 2 1 . . . . Fortress 1 | . . . . . . . . . . . . . . . . . . . . . . . . . . . . . . . . . . . . 1 . . . . . . Protovariant G 1 | . . . . . . . . . . . . . . . . . . . . . . . . . . . . . . . . . . . . . . . 1 . . . Decomposer 4 | . . . . . . . . . . . . . 2 . . . . . . . . . . 2 . . . . . . . . . . . . . . . . . . Packrat 1 | . . . . . . . . . . . . . . . . . . . . . . . . . . . . . . . 1 . . . . . . . . . . . Samaritan 3 | . . . . . . . . . . . . 1 1 . 1 . . . . . . . . . . . . . . . . . . . . . . . . . . . Thug 2 | . . . . . . . . . . . . . . . . . . . . . . . . . . . . . 2 . . . . . . . . . . . . . Butcher 2 | . . . . . . . . . . . . . . . . . 1 1 . . . . . . . . . . . . . . . . . . . . . . . . Martyr 1 | . . . . . . . . . . . . . . . . . . . . . . . . . . . . . 1 . . . . . . . . . . . . . Guerrilla 1 | . . . . . . . . . . . . . . . . . . . . . . . . . . . . . . . . . . . . . . . . . 1 . Wizard 1 | . . . . . . . . . . . . . . . . . . . . . . . . . . . . . . . . . . . . . . . . . 1 . Fireman 1 | . . . . . . . . . . . . . . . . . . . . . . . . . . . . . . . . . . . . . . . . . 1 . Mutant 2 | . . . . . . . . . . . . . . . . . . . . . . . . 1 . . . . . . . . . . . . . . . . 1 . Best Kill Streak 22 | 1 6 3 14 5 . 9 7 10 6 1 8 7 1 2 4 3 3 4 . 9 4 1 8 4 3 . 8 6 2 8 5 4 . 8 8 4 10 6 12 19 22 7 Combat Bots Only 21 | . 5 3 8 5 . 7 6 5 3 1 7 7 1 2 4 3 3 4 . 6 3 1 7 4 3 . 8 4 2 5 5 4 . 8 4 3 9 6 8 14 21 7 Max Kills in Single Turn 6 | 1 2 1 6 3 . 6 3 4 5 1 3 2 1 1 3 2 2 2 . 2 1 1 2 2 2 . 3 2 1 2 4 2 . 2 2 1 2 2 4 5 2 2 Gunslinging 1 | . . . . . . . . . . . . . . . . 1 . . . . . . . . . . . . . . . . . . . . . 1 . . 1 . Exploded 5 | . 2 . 4 3 . 4 3 2 1 . 3 2 . . 3 . 1 2 . . . . . 2 2 . 3 1 . 1 4 2 . 2 . . 2 . 3 5 1 . Melee 1 | . . . . . . . . . 1 . 1 . . . . 1 1 . . 1 . . 1 . . . . . . . . . . . . . . . 1 . . . Uniques/NPCs Destroyed 11 | . . 1 . . . . . 1 . . . . . 1 . . . . . . . . . . . . . . . . . . . . . . . . . . 1 7 YI-UF0 (-10/Mines) 01-MTF (-8/Storage) Data Miner (-7/Data Miner) MAIN.C Shell (-1/Command) MAIN.C (-1/Command) A8 (-1/Access_0) A6 (-1/Access_0) A5 (-1/Access_0) A4 (-1/Access_0) A2 (-1/Access_0) A3 (-1/Access_0) Architect (-1/Access_0) Combat | -11 -10 -10 -9 -9 -9 -8 -8 -8 -7 -7 -7 -7 -7 -7 -6 -6 -6 -6 -6 -6 -5 -5 -5 -5 -5 -5 -4 -4 -4 -4 -4 -4 -4 -3 -3 -3 -3 -2 -2 -1 -1 -1 -------- Run | Scr Mat Min Mat Min Exi Min Mat Sto Fac Was Fac Low Low Dat Pro Fac Ext Cet Arc Hub Fac Was Fac Upp Upp Zhi Pro Fac Was Fac Upp Upp War Pro Res Qua Sec Res Tes Acc Com Ac0 Damage Taken 43166 | . 237 324 1388 773 . 372 1432 1199 1274 . 1619 301 88 648 350 2104 309 202 . 2752 480 59 860 411 145 . 139 2025 90 352 175 234 . 1013 605 1926 2860 1078 2859 1918 3826 6739 Core 3267 | . 42 76 113 177 . 60 157 295 109 . 156 14 23 . 38 196 27 32 . 184 19 . 28 8 35 . 18 31 30 55 19 4 . 124 34 33 106 116 162 50 92 604 Absorbed by Shields 14489 | . . . . . . . . . . . . . . . . 64 9 178 . 48 . . . . . . . . . 72 90 98 . 579 585 1044 1302 . 295 514 3394 6217 Reduced by Siege Mode 840 | . . . . . . . . . . . . . . 12 . 56 . 6 . 81 . . 21 4 . . 4 67 . . . . . . 7 56 85 . 20 61 70 290 Core Remaining (%) 57 | 100 . 52 . . . 12 . 17 . . . . . . 51 . . . . 48 . . . . . . 89 . . . . . . 77 . . 67 . 63 . . 55 Volleys Fired 4512 | 3 43 27 123 47 . 24 76 120 91 37 68 12 5 20 16 101 28 20 7 152 37 73 109 51 33 . 12 281 46 81 27 21 18 70 220 252 338 63 250 249 410 851 Largest 3 | 2 2 2 2 2 . 2 2 2 2 2 2 2 2 2 2 2 2 2 1 2 2 2 2 1 1 . 2 2 2 2 2 1 1 2 2 2 2 3 3 1 3 3 Hottest 340 | 70 110 136 136 68 . 101 112 112 88 56 99 64 61 75 67 160 87 82 80 80 70 90 131 98 98 . 131 98 98 218 218 120 120 120 158 233 233 300 340 120 190 300 Shots Fired 6059 | 6 85 52 233 87 . 43 149 220 170 76 98 19 10 26 18 162 42 27 7 267 54 103 146 51 33 . 13 290 57 94 29 21 18 72 228 304 400 101 266 249 521 1212 Gun 3467 | 6 44 17 115 80 . 24 23 156 160 76 69 13 10 . 2 143 19 10 7 256 37 73 76 . . . 2 78 55 . 2 . . 9 56 157 80 73 77 25 372 1065 Cannon 2290 | . 40 35 93 . . 12 120 52 4 . 17 . . . . 16 10 . . 11 17 30 70 47 28 . 7 203 2 93 22 17 11 43 166 136 276 28 176 220 144 144 Launcher 230 | . 1 . 25 7 . 7 6 12 6 . 12 6 . 26 16 3 13 17 . . . . . 4 5 . 4 6 . 1 5 4 . 19 3 . 15 . 4 3 . . Special 72 | . . . . . . . . . . . . . . . . . . . . . . . . . . . . 3 . . . . 7 1 3 11 29 . 9 1 5 3 Kinetic 2045 | 3 21 12 84 77 . 20 65 165 160 76 69 13 10 . 2 82 29 2 . 255 37 103 85 . . . 2 78 55 . 2 . . 9 56 82 70 2 30 . 192 97 Thermal 1133 | 3 63 35 94 . . . . 27 4 . 17 . . . . 77 . 8 7 1 . . 21 37 26 . 3 62 2 59 7 1 11 29 85 113 182 . 34 110 10 5 Explosive 95 | . 1 . 22 7 . 7 5 7 . . 7 . . . 10 . 2 3 . . . . . . 5 . . 2 . . 4 . . 5 . . 1 . 4 3 . . Electromagnetic 1939 | . . 5 33 3 . 16 79 21 6 . 5 6 . 26 6 3 11 14 . 11 17 . 40 14 2 . 8 145 . 35 16 20 . 28 84 98 129 28 143 110 129 648 Slashing 794 | . . . . . . . . . . . . . . . . . . . . . . . . . . . . . . . . . . . . . 10 71 46 25 185 457 Entropic 2 | . . . . . . . . . . . . . . . . . . . . . . . . . . . . . . . . . . . . . . . . . . 2 Robot Hit Streak 77 | 3 10 8 13 15 . 8 27 15 11 11 9 9 3 7 7 25 11 10 13 36 22 10 27 24 2 . 5 32 49 25 46 13 20 32 32 71 27 22 39 18 77 56 Robot Miss Streak 9 | 2 3 4 3 3 . 3 7 9 3 5 8 2 1 1 2 6 2 2 . 6 2 2 2 1 1 . . 2 4 1 . 1 . 3 2 2 3 3 2 3 4 6 Penetration Max 2 | . . . . . . . . . 1 . . . . . . 1 1 . . 1 2 1 1 . . . . 1 . 1 . . . . 2 1 1 1 1 1 1 1 Secondary Targets 14 | . . . . 2 . . . 1 1 . 1 . . . . 1 . . . 4 . . . . . . . . . . . . . . . . . 1 1 . 2 . Max Gunslinging Chain 1 | . . . . 1 . . . 1 1 . 1 . . . . 1 . . . 1 . . . . . . . . . . . . . . . . . 1 1 . 1 . Capacitor 1225 | . . . . . . . . . . . . . . . . . . . . . . . . . . . . . . . . . . . . . . . 127 244 296 558 Shots Hit Robots 4243 | 4 55 27 147 59 . 25 118 155 116 70 98 16 15 14 9 137 28 13 9 175 46 74 115 15 2 11 3 211 50 52 19 18 7 30 135 201 243 47 176 132 416 950 Core Hits 2119 | 2 25 10 107 41 . 27 66 88 61 69 87 18 3 19 20 65 30 25 4 91 17 17 50 10 9 5 10 107 19 29 13 11 . 35 58 74 140 23 77 86 206 265 Critical Hits 536 | . . . 3 . . . . 2 9 . 2 . . . . 18 11 2 1 47 9 25 28 2 . 2 . 30 6 7 1 3 . . 20 14 29 4 21 27 80 133 Critical Kills 154 | . . . . . . . . . 3 . 2 . . . . 8 5 . . 26 5 6 10 . . . . 6 3 6 1 1 . . 4 2 11 3 2 9 16 25 Critical Parts Destroyed 275 | . . . 2 . . . . 2 6 . . . . . . 8 6 1 1 18 4 7 14 2 . 2 . 13 2 1 . 2 . . 8 8 12 1 12 15 43 85 Melee Attacks 477 | . . . . . . . . 2 23 2 75 16 14 2 14 77 28 11 2 16 20 8 59 1 . 12 . . 6 . . . 1 2 1 2 29 . 26 28 . . Impact . | . . . . . . . . . . . . . . . . . . . . . . . . . . . . . . . . . . . . . . . . . . . Slashing 470 | . . . . . . . . . 23 2 75 16 14 1 14 76 28 11 . 16 19 8 59 1 . 12 . . 6 . . . 1 2 1 2 29 . 26 28 . . Piercing . | . . . . . . . . . . . . . . . . . . . . . . . . . . . . . . . . . . . . . . . . . . . Sneak Attacks 42 | . . . . . . . . 2 1 . 15 1 3 2 1 1 8 . 1 1 1 . . . . . . . 4 . . . . . . . . . 1 . . . Combat Hostiles 1 | . . . . . . . . . . . 1 . . . . . . . . . . . . . . . . . . . . . . . . . . . . . . . Follow-up Attacks . | . . . . . . . . . . . . . . . . . . . . . . . . . . . . . . . . . . . . . . . . . . . Damage Inflicted 148216 | 51 818 479 4630 1545 . 1009 3129 3552 3533 1957 4666 987 915 666 1490 4485 2751 1593 181 5870 1539 933 3904 857 519 1483 654 9217 1827 2816 1444 906 . 2733 4457 5624 12466 2636 10782 10872 13755 14485 Guns 53391 | 51 275 150 1424 998 . 214 251 1828 2421 1957 934 281 86 . 15 2899 387 206 181 4656 632 418 1129 . . . 3 2458 1288 . 91 . . 423 1226 1986 2189 1532 2037 739 9249 8777 Cannons 62768 | . 468 329 1247 . . 211 2136 815 57 . 190 . . . . 253 277 . . 701 907 493 2590 625 60 . 183 6165 . 2749 753 729 . 627 3083 3638 7950 1104 5646 8730 4449 5603 Explosions 22522 | . 75 . 1959 547 . 584 742 909 731 . 1272 598 . 504 1357 590 880 1387 . 305 . . 99 232 459 . 468 594 . 67 600 177 . 1683 148 . 2212 . 1778 1403 57 105 Melee 9399 | . . . . . . . . . 324 . 2270 108 829 162 118 743 1186 . . 208 . 22 86 . . 1483 . . 539 . . . . . . . . . 1321 . . . Ramming 21 | . . . . . . . . . . . . . . . . . 21 . . . . . . . . . . . . . . . . . . . . . . . . . Kinetic 37934 | 26 75 108 989 959 . 166 855 1969 2421 1957 934 281 86 . 15 1473 664 . . 4631 632 911 1331 . . . 3 2458 1288 . 91 . . 423 1226 1518 1847 42 1358 . 4289 2908 Thermal 18687 | 25 668 329 1434 . . 30 286 431 57 . 190 27 . 58 . 1679 40 206 181 25 . . 750 112 . . 108 1040 . 1382 . . . 224 618 2034 4090 . 227 2274 57 105 Explosive 12731 | . 75 . 1745 547 . 554 395 650 455 . 958 . . . 965 373 252 483 . . . . 37 . 459 . . . . . 576 . . 787 . . 239 . 1778 1403 . . Electromagnetic 53326 | . . 42 462 39 . 259 1593 502 276 . 314 571 . 446 392 217 588 904 . 1006 907 . 1700 745 60 . 543 5719 . 1434 777 906 . 1299 2613 2072 5948 1104 5419 6456 4449 3564 Impact . | . . . . . . . . . . . . . . . . . . . . . . . . . . . . . . . . . . . . . . . . . . . Slashing 25346 | . . . . . . . . . 324 . 2270 108 829 162 118 743 1186 . . 208 . 22 86 . . 1483 . . 539 . . . . . . . 342 1490 2000 739 4960 7737 Piercing . | . . . . . . . . . . . . . . . . . . . . . . . . . . . . . . . . . . . . . . . . . . . Entropic 171 | . . . . . . . . . . . . . . . . . . . . . . . . . . . . . . . . . . . . . . . . . . 171 Highest Corruption 48 | . 2 2 . 4 4 4 1 2 1 22 22 6 . . . 3 2 . . 3 1 1 2 2 . . . 5 21 1 . . . 2 1 6 1 48 48 . . . Average Corruption 6 | . 2 2 . 4 4 4 1 1 1 16 13 3 . . . 2 1 . . 2 1 1 1 1 . . . 2 7 1 . . . 1 1 2 1 48 21 . . . Corruption Purged 138 | . . . . . . . . . 1 1 17 6 . . . 2 3 . . . . 1 1 2 . . . 7 37 1 . . . . 1 8 2 . 48 . . . Effects 593 | . 4 12 . 24 13 11 6 21 5 18 134 16 . . . 9 4 . . 13 3 4 3 3 . . . 8 79 1 . . . 5 2 17 1 28 149 . . . Message Errors 129 | . 4 3 . 5 2 3 4 8 3 2 24 6 . . . 2 2 . . 3 . 2 1 1 . . . 1 18 . . . . 2 . 5 . 5 23 . . . Matter Fused 95 | . . . . 9 4 2 . . . 3 28 1 . . . . . . . 1 . . . . . . . 1 17 . . . . . . 2 . 6 21 . . . Heat Flow Errors 41 | . . . . 1 . 2 . 4 . 2 10 3 . . . 1 1 . . 1 . . 1 . . . . . 8 . . . . . . 1 . 1 5 . . . Energy Discharges 62 | . . 4 . 1 3 . . 1 . 2 12 3 . . . 4 . . . 2 1 1 . 2 . . . . 10 1 . . . 1 . 1 . 2 11 . . . Parts Rejected 3 | . . . . . . 1 . . . . 1 . . . . . . . . . . . . . . . . . 1 . . . . . . . . . . . . . Data Loss (minor) 68 | . . 4 . 6 4 1 . 2 2 1 11 3 . . . 1 1 . . 3 . . . . . . . 3 8 . . . . . . 1 1 1 15 . . . Data Loss (major) 15 | . . . . . . . . . . 1 6 . . . . . . . . . . . . . . . . . . . . . . . . . . . 8 . . . Misfires 8 | . . . . . . . . . . 2 6 . . . . . . . . . . . . . . . . . . . . . . . . . . . . . . . Alerts 7 | . . . . . . . . . . . 2 . . . . . . . . . . . . . . . . . 4 . . . . . . . . . 1 . . . Misdirections 25 | . . . . . . . . . . 1 7 . . . . . . . . . . . . . . . . . 3 . . . . . . . . 6 8 . . . Targeting Errors 119 | . . . . 2 . 2 . 6 . 4 25 . . . . 1 . . . 3 1 1 1 . . . . 3 7 . . . . 2 1 7 . 5 48 . . . Weapon Failures 21 | . . 1 . . . . 2 . . . 2 . . . . . . . . . 1 . . . . . . . 3 . . . . . 1 . . 2 9 . . . Overload Shots . | . . . . . . . . . . . . . . . . . . . . . . . . . . . . . . . . . . . . . . . . . . . Overflow Damage 6187 | . . . 36 . . 11 30 22 137 . 681 23 519 . 61 144 377 7 . 14 79 . 54 88 76 235 4 530 63 199 146 63 . 229 171 189 378 91 821 449 145 115 Projectiles 2841 | . . . 1 . . . 30 2 . . . . . . . . . . . 14 79 . 54 87 . . . 530 . 199 68 45 . 11 171 189 345 91 324 341 145 115 Explosions 1102 | . . . 35 . . 11 . 20 32 . 72 23 . . 61 118 6 7 . . . . . 1 76 . 4 . . . 78 18 . 218 . . 33 . 181 108 . . Melee 2244 | . . . . . . . . . 105 . 609 . 519 . . 26 371 . . . . . . . . 235 . . 63 . . . . . . . . . 316 . . . Knockbacks 49 | . . . . . . . 14 8 . . . . . . . 3 1 . . . . . 1 . . . . . . . . . . . . . . . . . . 22 Impact . | . . . . . . . . . . . . . . . . . . . . . . . . . . . . . . . . . . . . . . . . . . . Kinetic 46 | . . . . . . . 12 7 . . . . . . . 3 1 . . . . . 1 . . . . . . . . . . . . . . . . . . 22 Secondary 3 | . . . . . . . 2 1 . . . . . . . . . . . . . . . . . . . . . . . . . . . . . . . . . . Self-Inflicted Damage 1373 | . . . 59 . . 53 104 . 85 . 165 . . . . 94 . . . 28 . . . . . . . 99 . . 24 1 . 78 18 . 189 . 70 306 . . Shots 41 | . . . 2 . . 2 3 . 3 . 5 . . . . 2 . . . 4 . . . . . . . 7 . . 1 1 . 2 1 . 4 . 1 3 . . Rammed 1 | . . . . . . . . . . . . . . . . . 1 . . . . . . . . . . . . . . . . . . . . . . . . . Targets Rammed 1 | . . . . . . . . . . . . . . . . . 1 . . . . . . . . . . . . . . . . . . . . . . . . . Kicked . | . . . . . . . . . . . . . . . . . . . . . . . . . . . . . . . . . . . . . . . . . . . Crushed . | . . . . . . . . . . . . . . . . . . . . . . . . . . . . . . . . . . . . . . . . . . . Highest Temperature 622 | 50 141 250 257 184 . 260 225 622 216 260 389 277 . 8 61 368 216 154 227 326 102 240 336 190 222 . 68 197 248 228 186 52 192 202 276 133 333 357 228 341 236 350 Average Temperature 78 | 26 40 66 59 60 . 63 49 141 60 139 100 111 . 4 25 88 42 61 96 115 20 74 90 78 79 . 33 44 101 58 37 7 60 52 61 42 74 83 63 86 36 70 Received Heat Transfer 6393 | . 93 . 489 195 . 99 630 189 231 . 345 63 . 84 45 621 105 4 . 873 165 . 219 72 . . . 240 . 38 30 . . 47 110 139 475 54 212 74 199 253 Effects 42 | . . . 1 . . . 1 29 . . 3 1 . . . 2 . . . 2 . . . . 1 . . . . . . . . . . . . . 1 1 . . Shutdowns 7 | . . . . . . . . 6 . . 1 . . . . . . . . . . . . . . . . . . . . . . . . . . . . . . . Energy Bleed 9 | . . . . . . . 1 3 . . 1 1 . . . . . . . 1 . . . . 1 . . . . . . . . . . . . . 1 . . . Interference 10 | . . . 1 . . . . 6 . . . . . . . 2 . . . 1 . . . . . . . . . . . . . . . . . . . . . . Matter Decay 4 | . . . . . . . . 3 . . 1 . . . . . . . . . . . . . . . . . . . . . . . . . . . . . . . Short Circuit 4 | . . . . . . . . 3 . . . . . . . . . . . . . . . . . . . . . . . . . . . . . . . 1 . . Damage (minor) 2 | . . . . . . . . 2 . . . . . . . . . . . . . . . . . . . . . . . . . . . . . . . . . . Damage (major) 4 | . . . . . . . . 4 . . . . . . . . . . . . . . . . . . . . . . . . . . . . . . . . . . Damage (core) 2 | . . . . . . . . 2 . . . . . . . . . . . . . . . . . . . . . . . . . . . . . . . . . . Siege Activations 99 | . . . . . . . . . . . . . . 3 . 5 2 2 . 8 . . 5 2 1 . 1 5 1 . . . . . 4 2 8 1 5 2 13 29 Total Turns 2681 | . . . . . . . . . . . . . . 44 . 153 15 24 . 178 . . 120 29 5 . 11 280 2 . . . . . 303 314 208 5 127 34 433 396 Longest Duration 198 | . . . . . . . . . . . . . . 19 . 75 9 16 . 46 . . 44 18 5 . 11 112 2 . . . . . 126 198 51 5 59 29 146 45 Robots Corrupted 188 | . . . . . . . 4 . 1 . 1 1 . 4 2 . . 7 . . 1 . 4 2 . . 1 18 . 4 2 3 . 2 9 9 22 5 20 29 18 19 Combat Hostiles 165 | . . . . . . . 4 . 1 . . 1 . 4 2 . . 7 . . 1 . 4 2 . . 1 12 . 3 2 3 . 2 9 7 19 3 16 26 17 19 Parts Fried 500 | . . . . . . 2 13 3 . . 4 1 . 5 5 . . 6 . 8 7 . 8 6 1 . 3 58 1 10 7 9 . 7 21 23 55 9 46 83 30 69 Impact Corruptions . | . . . . . . . . . . . . . . . . . . . . . . . . . . . . . . . . . . . . . . . . . . . Robots Melted 3 | . . . . . . . . . . . . . . . . 1 . . . . . . . . . . . . . . . . . . . . 1 . . 1 . . Combat Hostiles 3 | . . . . . . . . . . . . . . . . 1 . . . . . . . . . . . . . . . . . . . . 1 . . 1 . . Parts Melted 48 | . 8 . 3 . . . . . 2 . . . . . . 11 . . . 1 . . . . . . . . . 2 . . . . 1 . 7 . 1 12 . . Heat Transferred 19062 | 74 1554 592 2544 . . 100 400 975 74 . 296 50 . 50 . 2368 50 296 259 37 . . 605 111 . . 137 829 . 1110 . . . 100 444 1406 2873 . 148 1480 50 50 Parts Sabotaged 1 | . . . . . . . . . . . . . . . . . . . . 1 . . . . . . . . . . . . . . . . . . . . . . Parts Stolen . | . . . . . . . . . . . . . . . . . . . . . . . . . . . . . . . . . . . . . . . . . . . Parts Stripped . | . . . . . . . . . . . . . . . . . . . . . . . . . . . . . . . . . . . . . . . . . . . Power Chain Reactions 40 | . . . 3 . . 1 5 3 . . 1 2 . 2 . . 2 . . . . . 1 . . . 3 7 . . . 1 . 4 . . 3 . . . 1 1 Missiles Intercepted . | . . . . . . . . . . . . . . . . . . . . . . . . . . . . . . . . . . . . . . . . . . . Alert | -11 -10 -10 -9 -9 -9 -8 -8 -8 -7 -7 -7 -7 -7 -7 -6 -6 -6 -6 -6 -6 -5 -5 -5 -5 -5 -5 -4 -4 -4 -4 -4 -4 -4 -3 -3 -3 -3 -2 -2 -1 -1 -1 ------- Run | Scr Mat Min Mat Min Exi Min Mat Sto Fac Was Fac Low Low Dat Pro Fac Ext Cet Arc Hub Fac Was Fac Upp Upp Zhi Pro Fac Was Fac Upp Upp War Pro Res Qua Sec Res Tes Acc Com Ac0 Peak Influence 1905 | 5 230 128 992 488 . 185 418 633 235 84 602 . . . . 432 365 516 173 1010 562 156 524 . . . . 826 308 478 . . . . 374 676 1406 1089 1408 1905 1237 . Initial 1181 | . 3 . 46 373 . . 39 140 173 82 44 . . . . 132 211 86 163 60 494 138 . . . . . . 289 . . . . . 175 155 359 663 540 844 1181 . Average 336 | 1 71 71 580 339 . 54 279 392 112 67 188 . . . . 146 189 362 169 457 425 53 254 . . . . 284 18 163 . . . . 172 256 629 922 692 1335 968 . Maximum Alert Level 5 | . 1 . 3 2 . . 2 2 1 . 2 . . . . 2 1 2 . 3 2 . 2 . . . . 3 1 2 . . . . 1 2 4 3 4 5 5 . Low Security (%) 46 | 100 97 100 11 . . 100 15 13 93 100 69 . . . . 81 64 11 100 22 . 100 51 . . . . 35 95 85 . . . . 62 55 15 . . . . . Level 1 19 | . 2 . 25 80 . . 82 34 6 . 13 . . . . 16 35 32 . 26 43 . 17 . . . . 46 4 6 . . . . 37 20 29 . . . . . Level 2 14 | . . . 22 19 . . 2 51 . . 17 . . . . 1 . 55 . 32 56 . 30 . . . . 15 . 8 . . . . . 24 10 5 78 8 2 . Level 3 8 | . . . 40 . . . . . . . . . . . . . . . . 18 . . . . . . . 3 . . . . . . . . 20 94 12 25 20 . Level 4 6 | . . . . . . . . . . . . . . . . . . . . . . . . . . . . . . . . . . . . . 23 . 8 26 40 . Level 5 4 | . . . . . . . . . . . . . . . . . . . . . . . . . . . . . . . . . . . . . . . . 38 36 . High Security . | . . . . . . . . . . . . . . . . . . . . . . . . . . . . . . . . . . . . . . . . . . . Max Security . | . . . . . . . . . . . . . . . . . . . . . . . . . . . . . . . . . . . . . . . . . . . Squads Dispatched 185 | . 1 . 6 . . . 4 5 7 . 11 . . . . 21 2 . . 9 1 . 12 . . . . 15 . 3 . . . . 6 13 24 3 15 20 7 . Investigation 16 | . . . 1 . . . . 1 2 . 2 . . . . 5 1 . . . . . 1 . . . . 1 . . . . . . . . . 1 . 1 . . Extermination 64 | . . . . . . . . . 4 . 4 . . . . 6 . . . 3 1 . 5 . . . . 6 . 3 . . . . 2 8 10 . 5 5 2 . Reinforcement 43 | . 1 . 5 . . . 4 4 1 . 1 . . . . 2 1 . . 2 . . 2 . . . . 2 . . . . . . 2 2 2 2 4 3 3 . Assault 23 | . . . . . . . . . . . . . . . . . . . . 2 . . . . . . . 1 . . . . . . . 1 6 . 3 8 2 . Garrison 11 | . . . . . . . . . . . 4 . . . . 6 . . . . . . . . . . . . . . . . . . . . 1 . . . . . Intercept 28 | . . . . . . . . . . . . . . . . 2 . . . 2 . . 4 . . . . 5 . . . . . . 2 2 5 . 3 3 . . Construction Impeded 11 | . . . 1 . . . 1 1 . . . . . . . 1 1 . . . . . . . . . . 1 . . . . . . 1 2 . . 1 1 . . Haulers Reinforced 6 | . . . . . . . . . 1 . . . . . . 1 . . . 1 . . . . . . . 1 . . . . . . 1 . . . 1 . . . Stealth | -11 -10 -10 -9 -9 -9 -8 -8 -8 -7 -7 -7 -7 -7 -7 -6 -6 -6 -6 -6 -6 -5 -5 -5 -5 -5 -5 -4 -4 -4 -4 -4 -4 -4 -3 -3 -3 -3 -2 -2 -1 -1 -1 --------- Run | Scr Mat Min Mat Min Exi Min Mat Sto Fac Was Fac Low Low Dat Pro Fac Ext Cet Arc Hub Fac Was Fac Upp Upp Zhi Pro Fac Was Fac Upp Upp War Pro Res Qua Sec Res Tes Acc Com Ac0 Distress Signals 54 | . . . 6 . . . 1 5 1 . 1 . . . . . 2 2 . 4 3 . 3 . . . . 2 . 1 . . 2 . 1 . . 2 . 4 14 . Communications Jammed 15 | . . . . . . . . . . . . . . . . . . . . . . . . . . . . . . . . . . . 1 . 14 . . . . . Distress Signals 15 | . . . . . . . . . . . . . . . . . . . . . . . . . . . . . . . . . . . 1 . 14 . . . . . Times Spotted 1101 | . 14 10 77 24 . 14 39 45 22 6 28 13 1 4 11 35 21 21 9 63 10 11 41 7 4 . 9 52 6 20 12 10 . 23 34 42 95 20 49 65 65 69 Peak Tracking Total 11 | . 3 3 6 4 . 6 5 6 4 3 5 9 1 2 4 4 4 5 10 8 5 4 5 4 4 . 6 6 2 5 5 4 . 7 4 5 10 8 7 11 6 6 Tactical Retreats 99 | . 1 1 10 1 . 1 6 3 . . . 4 . . . 6 1 . 2 7 . 4 4 . . . . 9 . 1 . . . 2 2 9 7 1 9 4 1 3 Traps | -11 -10 -10 -9 -9 -9 -8 -8 -8 -7 -7 -7 -7 -7 -7 -6 -6 -6 -6 -6 -6 -5 -5 -5 -5 -5 -5 -4 -4 -4 -4 -4 -4 -4 -3 -3 -3 -3 -2 -2 -1 -1 -1 ------- Run | Scr Mat Min Mat Min Exi Min Mat Sto Fac Was Fac Low Low Dat Pro Fac Ext Cet Arc Hub Fac Was Fac Upp Upp Zhi Pro Fac Was Fac Upp Upp War Pro Res Qua Sec Res Tes Acc Com Ac0 Traps Triggered 33 | . 2 . 1 . . . 1 1 2 . 2 . . . . . 5 . . 1 1 . . . . . . 1 . . . . . . . . 2 . . . 14 . Indirectly 1 | . . . . . . . . . . . . . . . . . . . . 1 . . . . . . . . . . . . . . . . . . . . . . Trap Hack Attempts 14 | . . . . . . . . . . . . . . . . 14 . . . . . . . . . . . . . . . . . . . . . . . . . . Triggered . | . . . . . . . . . . . . . . . . . . . . . . . . . . . . . . . . . . . . . . . . . . . Disarmed 2 | . . . . . . . . . . . . . . . . 2 . . . . . . . . . . . . . . . . . . . . . . . . . . Reprogrammed 1 | . . . . . . . . . . . . . . . . 1 . . . . . . . . . . . . . . . . . . . . . . . . . . Reused 1 | . . . . . . . . . . . . . . . . 1 . . . . . . . . . . . . . . . . . . . . . . . . . . Traps Extracted . | . . . . . . . . . . . . . . . . . . . . . . . . . . . . . . . . . . . . . . . . . . . Installed . | . . . . . . . . . . . . . . . . . . . . . . . . . . . . . . . . . . . . . . . . . . . Triggered 15 | . . . . . . . . . . . . . . . . 1 . . . . . . 2 . 1 . . . . . . . 11 . . . . . . . . . Machines | -11 -10 -10 -9 -9 -9 -8 -8 -8 -7 -7 -7 -7 -7 -7 -6 -6 -6 -6 -6 -6 -5 -5 -5 -5 -5 -5 -4 -4 -4 -4 -4 -4 -4 -3 -3 -3 -3 -2 -2 -1 -1 -1 ---------- Run | Scr Mat Min Mat Min Exi Min Mat Sto Fac Was Fac Low Low Dat Pro Fac Ext Cet Arc Hub Fac Was Fac Upp Upp Zhi Pro Fac Was Fac Upp Upp War Pro Res Qua Sec Res Tes Acc Com Ac0 Machines Disabled 162 | . 2 3 7 2 . . 3 7 8 . 6 . 1 . . 4 5 3 . 19 1 . 5 1 . . . 2 . 3 1 . . . 3 8 29 1 9 3 10 16 Max in Single Turn 4 | . 2 2 1 1 . . 1 2 2 . 1 . 1 . . 1 1 1 . 4 1 . 1 1 . . . 1 . 1 1 . . . 2 1 2 1 2 1 1 1 Garrison Access 14 | . . . . . . . 1 . 1 . 1 . . . . . . . . . 1 . 1 . . . . 1 . 1 . . . . 2 1 1 2 . 1 . . Phase Generator 1 | . . . . . . . . . . . . . . . . . . . . . . . . . . . . . . . . . . . . . . . . . 1 . Network Hub 4 | . . . . . . . . . . . . . . . . . . . . 4 . . . . . . . . . . . . . . . . . . . . . . Machines Sabotaged . | . . . . . . . . . . . . . . . . . . . . . . . . . . . . . . . . . . . . . . . . . . . Garrisons Compromised . | . . . . . . . . . . . . . . . . . . . . . . . . . . . . . . . . . . . . . . . . . . . Overloaded Fab Kills . | . . . . . . . . . . . . . . . . . . . . . . . . . . . . . . . . . . . . . . . . . . . Fab Network Shutdowns 3 | . . . . . . . . . . . . . . . . . . . . . . . . . . . . . . 1 . . . . . . . . 1 1 . . Hacking | -11 -10 -10 -9 -9 -9 -8 -8 -8 -7 -7 -7 -7 -7 -7 -6 -6 -6 -6 -6 -6 -5 -5 -5 -5 -5 -5 -4 -4 -4 -4 -4 -4 -4 -3 -3 -3 -3 -2 -2 -1 -1 -1 --------- Run | Scr Mat Min Mat Min Exi Min Mat Sto Fac Was Fac Low Low Dat Pro Fac Ext Cet Arc Hub Fac Was Fac Upp Upp Zhi Pro Fac Was Fac Upp Upp War Pro Res Qua Sec Res Tes Acc Com Ac0 Machines Accessed 219 | . 4 . 4 . 4 . 5 9 10 . 5 . 1 4 . 15 9 2 1 11 5 . 18 2 . 9 . 15 . 7 . 2 6 . 12 17 17 3 6 10 4 2 Terminals 132 | . 4 . 2 . . . 3 9 7 . 2 . . . . 9 9 2 . 11 3 . 10 1 . . . 8 . 3 . 1 . . 7 12 12 2 4 7 4 . Fabricators 11 | . . . . . . . . . 1 . . . . . . 2 . . . . 1 . 1 . . . . 2 . 1 . . . . 1 . . . 1 1 . . Repair Stations 17 | . . . 1 . . . . . . . 1 . . . . 3 . . . . . . 3 . . . . 1 . 1 . . . . 2 2 2 . . 1 . . Recycling Units 5 | . . . . . . . . . . . . . . . . . . . . . . . 2 . . . . 2 . 1 . . . . . . . . . . . . Scanalyzers 10 | . . . 1 . . . 1 . 1 . . . . . . . . . . . . . 1 . . . . 1 . . . . . . . 2 2 . 1 . . . Garrison Access 15 | . . . . . . . 1 . 1 . 2 . . . . 1 . . . . 1 . 1 . . . . 1 . 1 . . . . 2 1 1 1 . 1 . . Total Hacks 849 | . 8 . 14 . 49 . 11 24 26 . 17 . 1 25 . 48 21 5 25 28 18 . 68 4 . 44 . 48 . 37 . 5 15 . 42 56 70 6 31 54 22 27 Successful 574 | . 5 . 8 . 49 . 8 13 17 . 6 . 1 25 . 24 9 4 25 15 16 . 36 1 . 44 . 29 . 25 . 3 15 . 31 37 42 2 19 26 12 27 Failed 275 | . 3 . 6 . . . 3 11 9 . 11 . . . . 24 12 1 . 13 2 . 32 3 . . . 19 . 12 . 2 . . 11 19 28 4 12 28 10 . Catastrophic 47 | . . . . . . . . 1 . . 4 . . . . 3 1 . . 5 . . 7 1 . . . 3 . 1 . . . . . . 5 3 2 10 1 . Database Lockouts . | . . . . . . . . . . . . . . . . . . . . . . . . . . . . . . . . . . . . . . . . . . . Manual 375 | . 7 . 7 . . . 5 13 15 . 7 . . . . 18 12 6 . 27 8 . 39 3 . . . 22 . 20 1 4 1 . 18 35 40 5 23 18 20 1 Terminals 433 | . 8 . 7 . . . 7 24 15 . 6 . . . . 21 21 5 . 28 5 . 40 3 . . . 22 . 18 . 4 . . 21 39 50 5 22 40 22 . Fabricators 71 | . . . . . . . . . 7 . . . . . . 6 . . . . 12 . 4 . . . . 11 . 9 . . . . 9 . . . 6 7 . . Repair Stations 83 | . . . 4 . . . . . . . 6 . . . . 16 . . . . . . 12 . . . . 6 . 8 . . . . 10 7 8 . . 6 . . Recycling Units 8 | . . . . . . . . . . . . . . . . . . . . . . . 3 . . . . 4 . 1 . . . . . . . . . . . . Scanalyzers 39 | . . . 3 . . . 2 . 3 . . . . . . . . . . . . . 5 . . . . 4 . . . . . . . 8 11 . 3 . . . Garrison Access 27 | . . . . . . . 2 . 1 . 5 . . . . 5 . . . . 1 . 4 . . . . 1 . 1 . . . . 2 2 1 1 . 1 . . Terminal Hacks 303 | . 3 . . . 49 . 2 9 2 . 1 . 1 25 . 4 5 2 25 6 1 . 7 1 . 44 . 4 . 3 . 3 15 . 4 12 19 1 8 13 7 27 Record 153 | . . . . . 49 . . . . . . . . 11 . . . . 25 . . . . . . 36 . . . . . . 13 . . 2 . . . . . 17 Part Schematic 19 | . 2 . . . . . 1 . . . . . . 6 . 2 . . . . . . 2 . . 4 . . . . . . . . . . 1 . 1 . . . Robot Schematic 5 | . . . . . . . . . . . . . . 5 . . . . . . . . . . . . . . . . . . . . . . . . . . . . Prototype ID Bank 8 | . 1 . . . . . . . . . . . . 3 . . . . . . . . . . . 4 . . . . . . . . . . . . . . . . Open Door 17 | . . . . . . . . 6 . . . . 1 . . 1 3 . . . . . . 1 . . . . . . . 1 2 . . . . . 1 . 1 . Level Access Points 2 | . . . . . . . . . . . . . . . . . . . . . . . . . . . . . . . . 1 . . . 1 . . . . . . Branch Access Points 6 | . . . . . . . 1 . . . . . . . . . . . . . . . 1 . . . . . . 1 . 1 . . 1 . . 1 . . . . Terminal Index 1 | . . . . . . . . 1 . . . . . . . . . . . . . . . . . . . . . . . . . . . . . . . . . . Alert Level 12 | . . . . . . . . . . . . . . . . 1 . . . 1 . . . . . . . . . 1 . . . . 1 1 3 . 1 3 . . Unreport Threat 37 | . . . . . . . . 2 1 . 1 . . . . . 1 1 . 3 . . 3 . . . . . . 1 . . . . 2 1 8 . 3 5 5 . Locate Traps 4 | . . . . . . . . . 1 . . . . . . . . . . . 1 . . . . . . 1 . . . . . . . 1 . . . . . . Recall Investigation 1 | . . . . . . . . . . . . . . . . . . . . . . . . . . . . 1 . . . . . . . . . . . . . . Recall Extermination 6 | . . . . . . . . . . . . . . . . . . . . . . . . . . . . . . . . . . . . 1 3 . . 2 . . Recall Reinforcements 4 | . . . . . . . . . . . . . . . . . 1 . . 1 . . . . . . . 1 . . . . . . . . . . . 1 . . Recall Assault 7 | . . . . . . . . . . . . . . . . . . . . . . . . . . . . . . . . . . . . . 3 . 2 2 . . Hauler Manifests 1 | . . . . . . . . . . . . . . . . . . . . . . . 1 . . . . . . . . . . . . . . . . . . . Zone Layout 9 | . . . . . . . . . . . . . . . . . . 1 . 1 . . . . . . . 1 . . . . . . . 5 1 . . . . . Disengage Seal 1 | . . . . . . . . . . . . . . . . . . . . . . . . . . . . . . . . . . . . . . . . . 1 . Gate Test 138-A 4 | . . . . . . . . . . . . . . . . . . . . . . . . . . . . . . . . . . . . . . . . . . 4 Gate Test 138-B 2 | . . . . . . . . . . . . . . . . . . . . . . . . . . . . . . . . . . . . . . . . . . 2 Gate Test 138-C 1 | . . . . . . . . . . . . . . . . . . . . . . . . . . . . . . . . . . . . . . . . . . 1 Gate Test 138-END 3 | . . . . . . . . . . . . . . . . . . . . . . . . . . . . . . . . . . . . . . . . . . 3 Fabricator Hacks 45 | . . . . . . . . . 5 . . . . . . 4 . . . . 7 . 2 . . . . 8 . 6 . . . . 6 . . . 3 4 . . Load Schematic 21 | . . . . . . . . . 2 . . . . . . 2 . . . . 3 . 1 . . . . 4 . 3 . . . . 3 . . . 1 2 . . Build 24 | . . . . . . . . . 3 . . . . . . 2 . . . . 4 . 1 . . . . 4 . 3 . . . . 3 . . . 2 2 . . Repair Station Hacks 52 | . . . 3 . . . . . . . 4 . . . . 11 . . . . . . 6 . . . . 4 . 8 . . . . 6 5 3 . . 2 . . Scan Component 28 | . . . 2 . . . . . . . 2 . . . . 6 . . . . . . 3 . . . . 2 . 4 . . . . 3 3 2 . . 1 . . Repair 24 | . . . 1 . . . . . . . 2 . . . . 5 . . . . . . 3 . . . . 2 . 4 . . . . 3 2 1 . . 1 . . Recycling Unit Hacks 5 | . . . . . . . . . . . . . . . . . . . . . . . 2 . . . . 2 . 1 . . . . . . . . . . . . Retrieve Components 5 | . . . . . . . . . . . . . . . . . . . . . . . 2 . . . . 2 . 1 . . . . . . . . . . . . Scanalyzer 32 | . . . 3 . . . 2 . 3 . . . . . . . . . . . . . 3 . . . . 2 . . . . . . . 6 11 . 2 . . . Insert Component 20 | . . . 1 . . . 1 . 1 . . . . . . . . . . . . . 2 . . . . 1 . . . . . . . 5 8 . 1 . . . Analyze 12 | . . . 2 . . . 1 . 2 . . . . . . . . . . . . . 1 . . . . 1 . . . . . . . 1 3 . 1 . . . Garrison Access Hacks 11 | . . . . . . . 1 . 1 . . . . . . . . . . . 1 . . . . . . 1 . 1 . . . . 2 1 1 1 . 1 . . Seal Access 11 | . . . . . . . 1 . 1 . . . . . . . . . . . 1 . . . . . . 1 . 1 . . . . 2 1 1 1 . 1 . . Unauthorized Hacks 126 | . 2 . 2 . . . 3 4 6 . 1 . . . . 5 4 2 . 9 7 . 16 . . . . 8 . 6 . . . . 13 13 8 . 6 6 5 . Terminals 108 | . 2 . 2 . . . 3 4 4 . . . . . . 5 4 2 . 9 3 . 14 . . . . 7 . 4 . . . . 11 13 8 . 3 5 5 . Track 35 | . 1 . . . . . . . . . . . . . . 1 1 1 . 6 . . 6 . . . . 3 . 1 . . . . 3 6 4 . . . 2 . Assimilate 13 | . . . . . . . . . . . . . . . . 1 . . . . . . 4 . . . . . . . . . . . 3 3 1 . . 1 . . Botnet 55 | . 1 . 2 . . . 3 4 3 . . . . . . 3 3 1 . 3 3 . 3 . . . . 4 . 3 . . . . 3 3 3 . 3 4 3 . Disrupt 1 | . . . . . . . . . . . . . . . . . . . . . . . . . . . . . . . . . . . 1 . . . . . . . Operators 4 | . . . . . . . . . 1 . . . . . . . . . . . . . 1 . . . . . . . . . . . 1 1 . . . . . . Fabricators 16 | . . . . . . . . . 2 . . . . . . . . . . . 4 . 1 . . . . 1 . 2 . . . . 2 . . . 3 1 . . Report 2 | . . . . . . . . . . . . . . . . . . . . . 1 . . . . . . . . . . . . . . . . . 1 . . . Prioritize 8 | . . . . . . . . . 1 . . . . . . . . . . . 1 . 1 . . . . 1 . 1 . . . . 1 . . . 1 1 . . Siphon 5 | . . . . . . . . . 1 . . . . . . . . . . . 1 . . . . . . . . 1 . . . . 1 . . . 1 . . . Haulers 1 | . . . . . . . . . . . . . . . . . . . . . 1 . . . . . . . . . . . . . . . . . . . . . Repair Stations . | . . . . . . . . . . . . . . . . . . . . . . . . . . . . . . . . . . . . . . . . . . . Recycling Units . | . . . . . . . . . . . . . . . . . . . . . . . . . . . . . . . . . . . . . . . . . . . Scanalyzers . | . . . . . . . . . . . . . . . . . . . . . . . . . . . . . . . . . . . . . . . . . . . Garrison Access 2 | . . . . . . . . . . . 1 . . . . . . . . . . . 1 . . . . . . . . . . . . . . . . . . . Jam 2 | . . . . . . . . . . . 1 . . . . . . . . . . . 1 . . . . . . . . . . . . . . . . . . . Data Cores Recovered . | . . . . . . . . . . . . . . . . . . . . . . . . . . . . . . . . . . . . . . . . . . . Used . | . . . . . . . . . . . . . . . . . . . . . . . . . . . . . . . . . . . . . . . . . . . Hacking Detections 125 | . 1 . 2 . . . 2 4 7 . 5 . . . . 14 8 2 . 7 3 . 12 1 . . . 7 . 5 . . . . 4 12 11 2 5 8 3 . Full Trace Events 11 | . . . . . . . . 1 1 . 1 . . . . 5 1 . . . . . . . . . . . . . . . . . . . . 1 . 1 . . Feedback Events 1 | . . . . . . . . . . . . . . . . . . . . . . . . . . . . . . . . . . . . . . . . 1 . . Corruption 1 | . . . . . . . . . . . . . . . . . . . . . . . . . . . . . . . . . . . . . . . . 1 . . Feedback Blocked . | . . . . . . . . . . . . . . . . . . . . . . . . . . . . . . . . . . . . . . . . . . . Robot Schematics Acquired 5 | . . . . . . . . . . . . . . 5 . . . . . . . . . . . . . . . . . . . . . . . . . . . . Robots Built . | . . . . . . . . . . . . . . . . . . . . . . . . . . . . . . . . . . . . . . . . . . . Matter . | . . . . . . . . . . . . . . . . . . . . . . . . . . . . . . . . . . . . . . . . . . . Time . | . . . . . . . . . . . . . . . . . . . . . . . . . . . . . . . . . . . . . . . . . . . Total Robot Build Rating . | . . . . . . . . . . . . . . . . . . . . . . . . . . . . . . . . . . . . . . . . . . . Part Schematics Acquired 27 | . 2 . 1 . . . 2 . 1 . . . . 6 . 2 . . . . . . 3 . . 4 . 1 . . . . . . . 1 2 . 2 . . . Parts Built 24 | . . . . . . . . . 3 . . . . . . 2 . . . . 4 . 1 . . . . 5 . 3 . . . . 3 . . . 1 2 . . Matter 4730 | . . . . . . . . . 254 . . . . . . 420 . . . . 413 . 285 . . . . 628 . 781 . . . . 386 . . . 729 834 . . Time 1395 | . . . . . . . . . 101 . . . . . . 109 . . . . 154 . 76 . . . . 262 . 167 . . . . 82 . . . 333 111 . . Total Part Build Rating 101 | . . . . . . . . . 3 . . . . . . 7 . . . . 9 . 5 . . . . 21 . 20 . . . . 9 . . . 9 18 . . Parts Repaired 24 | . . . 1 . . . . . . . 2 . . . . 5 . . . . . . 3 . . . . 2 . 4 . . . . 3 2 1 . . 1 . . Time 939 | . . . 26 . . . . . . . 124 . . . . 210 . . . . . . 115 . . . . 197 . 145 . . . . 44 34 16 . . 28 . . Parts Recycled . | . . . . . . . . . . . . . . . . . . . . . . . . . . . . . . . . . . . . . . . . . . . Recycled Matter . | . . . . . . . . . . . . . . . . . . . . . . . . . . . . . . . . . . . . . . . . . . . Retrieved Matter . | . . . . . . . . . . . . . . . . . . . . . . . . . . . . . . . . . . . . . . . . . . . Retrieved Components 30 | . . . . . . . . . . . . . . . . . . . . . . . 11 . . . . 16 . 3 . . . . . . . . . . . . Parts Scanalyzed 8 | . . . 1 . . . 1 . 1 . . . . . . . . . . . . . 1 . . . . 1 . . . . . . . 1 1 . 1 . . . Part Schematics Acquired 8 | . . . 1 . . . 1 . 1 . . . . . . . . . . . . . 1 . . . . 1 . . . . . . . 1 1 . 1 . . . Parts Damaged . | . . . . . . . . . . . . . . . . . . . . . . . . . . . . . . . . . . . . . . . . . . . Bothacking | -11 -10 -10 -9 -9 -9 -8 -8 -8 -7 -7 -7 -7 -7 -7 -6 -6 -6 -6 -6 -6 -5 -5 -5 -5 -5 -5 -4 -4 -4 -4 -4 -4 -4 -3 -3 -3 -3 -2 -2 -1 -1 -1 ------------ Run | Scr Mat Min Mat Min Exi Min Mat Sto Fac Was Fac Low Low Dat Pro Fac Ext Cet Arc Hub Fac Was Fac Upp Upp Zhi Pro Fac Was Fac Upp Upp War Pro Res Qua Sec Res Tes Acc Com Ac0 Used RIF Installer . | . . . . . . . . . . . . . . . . . . . . . . . . . . . . . . . . . . . . . . . . . . . Robots Hacked 18 | . . . . . . . . 1 . . . . . 1 . 1 . . 1 . 1 . . . . . . 1 . . . . 6 1 1 . . . 1 . 2 1 Non-combat 4 | . . . . . . . . . . . . . . . . . . . . . 1 . . . . . . 1 . . . . . 1 1 . . . . . . . Combat 13 | . . . . . . . . 1 . . . . . 1 . 1 . . 1 . . . . . . . . . . . . . 6 . . . . . 1 . 1 1 Robot Hacks Applied 18 | . . . . . . . . 1 . . . . . 1 . 1 . . 1 . 1 . . . . . . 2 . . . . 6 1 1 . . . 1 . 1 1 parse_system 14 | . . . . . . . . 1 . . . . . 1 . 1 . . 1 . . . . . . . . . . . . . 6 1 . . . . 1 . 1 1 no_distress 1 | . . . . . . . . . . . . . . . . . . . . . . . . . . . . . . . . . . . 1 . . . . . . . find_chute 3 | . . . . . . . . . . . . . . . . . . . . . 1 . . . . . . 2 . . . . . . . . . . . . . . Manual 2 | . . . . . . . . . . . . . . . . . . . . . . . . . . . . . . . . . . . . . . . . . 2 . Relay Couplers Released 15 | . . . . . . . . . . . 4 . . . . . . . . . . . . . . . . . . . . . . . . . 3 8 . . . . Machine Destruction 7 | . . . . . . . . . . . . . . . . . . . . . . . . . . . . . . . . . . . . . 3 4 . . . . Programmers 8 | . . . . . . . . . . . 4 . . . . . . . . . . . . . . . . . . . . . . . . . . 4 . . . . Robots Rewired 13 | . . . . . . . . . . . . 2 . . . . 4 . . . . . . 4 . . . . . . . . . . . . . . 1 . 2 . Allies Hacked . | . . . . . . . . . . . . . . . . . . . . . . . . . . . . . . . . . . . . . . . . . . . Hacks Repelled . | . . . . . . . . . . . . . . . . . . . . . . . . . . . . . . . . . . . . . . . . . . . Allies | -11 -10 -10 -9 -9 -9 -8 -8 -8 -7 -7 -7 -7 -7 -7 -6 -6 -6 -6 -6 -6 -5 -5 -5 -5 -5 -5 -4 -4 -4 -4 -4 -4 -4 -3 -3 -3 -3 -2 -2 -1 -1 -1 -------- Run | Scr Mat Min Mat Min Exi Min Mat Sto Fac Was Fac Low Low Dat Pro Fac Ext Cet Arc Hub Fac Was Fac Upp Upp Zhi Pro Fac Was Fac Upp Upp War Pro Res Qua Sec Res Tes Acc Com Ac0 Total Allies 52 | . . 1 . . . . . 2 . 1 . 2 . . . . 10 . . . . . 4 4 . . . . 19 . . . . . 2 1 1 . 1 1 3 . Largest Group 19 | . . 1 . . . . . 2 . 1 . 2 2 . . . 5 5 1 . . . 2 4 4 4 4 4 19 . . . . . 2 1 1 . 1 1 3 . Highest-Rated Group 696 | . . 31 . . . . . 114 . 31 . 48 48 . . . 262 259 150 . . . 36 106 106 106 106 106 696 . . . . . 70 44 44 . 146 44 470 . Highest-Rated Ally 222 | . . 31 . . . . . 99 . 31 . 32 32 . . . 156 156 150 . . . 26 31 31 31 31 31 50 . . . . . 44 44 44 . 146 44 222 . Total Orders 82 | . . . . . . . . 8 . . . . . . . 3 4 3 . 2 . . 19 2 2 . 6 15 . . . . . . 11 1 1 . 1 4 . . STAY 40 | . . . . . . . . 3 . . . . . . . 1 2 2 . . . . 10 1 1 . 3 6 . . . . . . 6 . 1 . 1 3 . . ROAM 2 | . . . . . . . . 1 . . . . . . . . . . . 1 . . . . . . . . . . . . . . . . . . . . . . FOLLOW 28 | . . . . . . . . . . . . . . . . 1 2 1 . . . . 7 1 1 . 3 6 . . . . . . 5 . . . . 1 . . EXPLORE 5 | . . . . . . . . 4 . . . . . . . 1 . . . . . . . . . . . . . . . . . . . . . . . . . . RETURN 7 | . . . . . . . . . . . . . . . . . . . . 1 . . 2 . . . . 3 . . . . . . . 1 . . . . . . Ally Attacks 338 | . . 6 . . . . . 17 . 10 . 3 8 . . . 122 38 . 13 . . 7 . 4 . . 43 . . . . . . . 11 . . . . 56 . Total Damage 9738 | . . 125 . . . . . 532 . 184 . 44 216 . . . 1859 1191 . 246 . . 146 . 65 . . 704 . . . . . . . 144 . . . . 4282 . Kills 64 | . . 2 . . . . . 8 . 1 . 1 . . . . 18 11 . 2 . . . . . . . 2 . . . . . . . . . . . . 19 . Allies Corrupted 18 | . . . . . . . . . . . . . . . . . . . . . . . . . . . . . 17 . . . . . . . 1 . . . . . Allies Melted 1 | . . . . . . . . . . . . . . . . . . . . . . . . . . . . . . . . . . . . . . 1 . . . . Intel | -11 -10 -10 -9 -9 -9 -8 -8 -8 -7 -7 -7 -7 -7 -7 -6 -6 -6 -6 -6 -6 -5 -5 -5 -5 -5 -5 -4 -4 -4 -4 -4 -4 -4 -3 -3 -3 -3 -2 -2 -1 -1 -1 ------- Run | Scr Mat Min Mat Min Exi Min Mat Sto Fac Was Fac Low Low Dat Pro Fac Ext Cet Arc Hub Fac Was Fac Upp Upp Zhi Pro Fac Was Fac Upp Upp War Pro Res Qua Sec Res Tes Acc Com Ac0 Robot Analysis Total 115 | . . . . . . . . . . . . . . 115 . . . . . . . . . . . . . . . . . . . . . . . . . . . . Derelict Logs Recovered 10 | . . 1 . 1 . . . . . . . 1 2 . . . . . . . . . . 1 1 . 1 . . . 1 1 . . . . . . . . . . Drone Launches 20 | . . . . . . . . 8 . . . . . . . 2 . . . 2 . . 2 . . . . 4 . . . . . . . 2 . . . . . . Drone Recoveries 10 | . . . . . . . . 1 . . . . . . . . . . . 2 . . 2 . . . . 4 . . . . . . . 1 . . . . . . Exploration | -11 -10 -10 -9 -9 -9 -8 -8 -8 -7 -7 -7 -7 -7 -7 -6 -6 -6 -6 -6 -6 -5 -5 -5 -5 -5 -5 -4 -4 -4 -4 -4 -4 -4 -3 -3 -3 -3 -2 -2 -1 -1 -1 ------------- Run | Scr Mat Min Mat Min Exi Min Mat Sto Fac Was Fac Low Low Dat Pro Fac Ext Cet Arc Hub Fac Was Fac Upp Upp Zhi Pro Fac Was Fac Upp Upp War Pro Res Qua Sec Res Tes Acc Com Ac0 Turns Passed 83714 | 70 818 747 2283 1726 743 634 1698 2042 2743 351 2634 1075 709 771 746 3261 2342 550 125 2120 1283 1090 3918 1310 1100 559 915 3166 8472 1313 1080 687 1662 971 2150 2615 4446 1115 2614 2309 5108 7643 Spaces Moved 31333 | 52 725 452 977 865 410 379 605 828 1592 134 915 628 407 399 366 1009 1026 198 49 695 363 423 1473 508 430 237 386 946 801 435 509 339 879 403 547 767 1314 576 648 793 2139 3706 Core 142 | 1 . . . . . . . . . . . . . . . . . . . . . . . . . . . . 141 . . . . . . . . . . . . . Treads 14784 | . . 297 977 865 410 148 585 828 208 . . . . 131 . 734 884 184 19 326 . . 85 508 430 237 386 291 4 . . . . . 47 30 38 . 606 5 1815 3706 Legs . | . . . . . . . . . . . . . . . . . . . . . . . . . . . . . . . . . . . . . . . . . . . Wheels 16407 | 51 725 155 . . . 231 20 . 1384 134 915 628 407 268 366 275 142 14 30 369 363 423 1388 . . . . 655 656 435 509 339 879 403 500 737 1276 576 42 788 324 . Hover . | . . . . . . . . . . . . . . . . . . . . . . . . . . . . . . . . . . . . . . . . . . . Flight . | . . . . . . . . . . . . . . . . . . . . . . . . . . . . . . . . . . . . . . . . . . . Fastest Speed 50 | 50 90 90 160 180 160 100 100 180 110 130 140 150 150 140 150 150 160 160 170 170 180 180 180 200 220 220 220 170 170 170 180 180 170 170 180 180 140 150 190 160 140 155 Average Speed 196 | 89 90 138 175 180 179 138 221 187 131 147 150 150 151 161 150 188 194 198 181 191 183 182 183 214 220 220 220 192 1019 179 180 180 176 179 189 193 189 155 199 179 190 161 Slowest Speed 4950 | 100 90 160 180 180 180 200 280 280 180 170 160 160 160 200 160 220 220 220 200 220 190 190 220 220 220 220 220 220 4950 180 180 180 180 180 240 270 290 200 290 290 290 220 Overloaded Moves . | . . . . . . . . . . . . . . . . . . . . . . . . . . . . . . . . . . . . . . . . . . . Propulsion Burnouts . | . . . . . . . . . . . . . . . . . . . . . . . . . . . . . . . . . . . . . . . . . . . Robots Hopped . | . . . . . . . . . . . . . . . . . . . . . . . . . . . . . . . . . . . . . . . . . . . Cave-ins Triggered 1 | . . . . . . . . . . . . . . . . . . . . . . . . . . . . . . . . . . 1 . . . . . . . . Teleports 3 | . . . . . . . . . . . . . . . . . . . . . . . . . . . . . . . . . . . . . 1 . . . 1 1 Exploration Rate (%) 58 | 4 96 85 77 98 87 76 46 90 45 74 26 67 58 78 44 27 74 74 66 66 11 86 31 75 44 62 50 22 79 14 63 49 94 58 19 73 78 26 57 16 56 91 Regions Visited 42 Branch Regions 26 Pre-discovered Areas 33 | . . . . . 1 . . . . . . . . 26 . . . . . . . . . 1 1 3 1 . . . . . . . . . . . . . . . Known Exits Taken 27 | . . . . . . . 1 . . . 1 1 1 1 1 1 1 1 1 1 . . 1 1 1 1 1 . . 1 1 1 1 1 1 1 1 1 1 1 . . Unknown Exits Taken 9 | 1 1 1 1 1 1 1 . 1 . . . . . . . . . . . . . . . . . . . . . . . . . . . . . . . . 1 . Scrap Searched 15 | . . 1 . 2 . 1 . . . . . 3 1 . . . . . . . . . . 1 1 . 1 . . . 2 2 . . . . . . . . . . Spaces Dug 805 | . . . 3 . . . . . 15 2 24 15 5 . 10 54 5 1 . 12 19 7 59 16 12 . 1 51 3 18 2 1 8 35 59 55 66 19 48 45 63 72 Terrain Destroyed 3148 | . . 20 110 49 . 58 58 65 32 2 75 23 5 7 108 87 42 1 . 726 23 15 108 34 73 . 18 69 4 26 73 4 9 106 70 71 126 38 110 133 97 473 Melee 254 | . . . . . . . . . 15 2 24 15 5 . 10 54 5 1 . 10 19 7 53 . . . . . 2 . . . 1 2 1 2 13 . 10 3 . . Projectile 1213 | . . 8 1 5 . . 1 1 1 . 3 . . . . 10 5 . . 58 4 8 15 34 26 . 2 45 2 26 5 1 8 29 69 69 52 38 54 73 97 463 AOE 1681 | . . 12 109 44 . 58 57 64 16 . 48 8 . 7 98 23 32 . . 658 . . 40 . 47 . 16 24 . . 68 3 . 75 . . 61 . 46 57 . 10 Terrain Rammed . | . . . . . . . . . . . . . . . . . . . . . . . . . . . . . . . . . . . . . . . . . . . Walls Destroyed . | . . . . . . . . . . . . . . . . . . . . . . . . . . . . . . . . . . . . . . . . . . . Machines Disabled . | . . . . . . . . . . . . . . . . . . . . . . . . . . . . . . . . . . . . . . . . . . . Actions | -11 -10 -10 -9 -9 -9 -8 -8 -8 -7 -7 -7 -7 -7 -7 -6 -6 -6 -6 -6 -6 -5 -5 -5 -5 -5 -5 -4 -4 -4 -4 -4 -4 -4 -3 -3 -3 -3 -2 -2 -1 -1 -1 --------- Run | Scr Mat Min Mat Min Exi Min Mat Sto Fac Was Fac Low Low Dat Pro Fac Ext Cet Arc Hub Fac Was Fac Upp Upp Zhi Pro Fac Was Fac Upp Upp War Pro Res Qua Sec Res Tes Acc Com Ac0 Total 48479 | 66 812 517 1304 943 418 443 815 1139 2034 210 1953 713 466 501 506 2072 1265 302 77 1199 905 620 2459 682 549 257 440 2094 1070 875 648 395 983 586 1454 1632 2854 727 1824 1624 3078 4968 Wait 7707 | . 14 22 124 18 . 23 69 69 207 7 729 8 22 24 90 633 78 32 14 195 397 60 639 68 68 . 18 559 166 263 53 13 56 51 490 336 655 28 626 421 165 197 Move 31293 | 51 724 451 976 864 409 378 604 827 1592 133 914 627 406 398 365 1008 1025 197 48 694 363 422 1472 507 429 236 385 946 800 434 508 338 878 402 546 766 1313 575 647 792 2138 3705 Hop . | . . . . . . . . . . . . . . . . . . . . . . . . . . . . . . . . . . . . . . . . . . . Pick Up 688 | 6 11 1 23 1 1 3 22 25 23 8 23 2 6 23 . 30 8 6 . 22 14 9 19 4 1 2 2 43 10 17 5 4 6 9 23 39 62 9 39 22 67 38 Fast Attach 416 | 6 1 3 3 1 2 1 5 17 5 3 16 6 1 4 . 19 5 5 1 8 9 1 21 5 2 2 2 34 3 8 7 1 4 6 15 27 53 3 32 11 26 32 Attach 731 | . 1 4 11 4 2 4 12 6 8 3 36 8 2 10 . 35 5 5 . 31 15 7 24 9 2 1 5 67 9 15 8 4 4 12 38 51 103 10 51 20 58 31 Detach 668 | . . 1 3 . 3 . 5 7 8 4 26 8 3 7 . 39 6 4 1 30 15 3 31 7 3 . 5 69 8 14 13 2 3 8 46 46 101 6 52 17 50 14 Swap 938 | . 8 5 31 8 . 8 11 29 42 6 33 6 5 1 21 75 25 11 2 32 13 27 50 2 8 1 7 29 10 23 14 6 3 11 47 52 96 25 40 36 31 48 Drop 918 | . 10 3 10 . 1 2 11 34 35 7 33 8 2 12 . 41 11 11 2 19 22 10 35 9 3 3 4 66 12 20 13 6 10 15 28 61 95 8 61 28 105 52 Fire 4512 | 3 43 27 123 47 . 24 76 120 91 37 68 12 5 20 16 101 28 20 7 152 37 73 109 51 33 . 12 281 46 81 27 21 18 70 220 252 338 63 250 249 410 851 Melee 477 | . . . . . . . . 2 23 2 75 16 14 2 14 77 28 11 2 16 20 8 59 1 . 12 . . 6 . . . 1 2 1 2 29 . 26 28 . . Ram . | . . . . . . . . . . . . . . . . . . . . . . . . . . . . . . . . . . . . . . . . . . . Kick . | . . . . . . . . . . . . . . . . . . . . . . . . . . . . . . . . . . . . . . . . . . . Crush 1 | . . . . . . . . . . . . . . . . . 1 . . . . . . . . . . . . . . . . . . . . . . . . . Escape Stasis 50 | . . . . . . . . . . . . . . . . . 14 . . . . . . . . . . . . . . . . . . . 8 . . . 28 . Rewire 63 | . . . . . . . . . . . . 12 . . . . 31 . . . . . . 19 . . . . . . . . . . . . 1 . . . . . Trap 14 | . . . . . . . . . . . . . . . . 14 . . . . . . . . . . . . . . . . . . . . . . . . . . Miscellaneous 3 | . . . . . . . . 3 . . . . . . . . . . . . . . . . . . . . . . . . . . . . . . . . . . Route ------- -11/Scrapyard -10/Materials (discovered 4 exits: *Mat x3 / [*Min]) -10/Mines (discovered 2 exits: *Mat x2) -9/Materials (discovered 4 exits: *Mat x3 / [*Min]) -9/Mines (discovered 3 exits: *Mat x2 / *Exi) -9/Exiles -8/Mines -8/Materials (discovered 2 exits: *Fac / *Sto) -8/Storage -7/Factory (discovered 4 exits: *Fac x3 / *Low) -7/Waste -7/Factory (discovered 2 exits: *Fac / *Low) -7/Lower Caves -7/Lower Caves (discovered 2 exits: *Fac / *Dat) -7/Data Miner -6/Proximity Caves -6/Factory (discovered 5 exits: *Fac / *Low x2 / *Ext x2) -6/Extension (discovered 2 exits: *Fac / *Cet) -6/Cetus (discovered 2 exits: *Fac / *Arc) -6/Archives -6/Hub_04(d) (discovered 4 exits: *Fac x4) -5/Factory -5/Waste -5/Factory (discovered 3 exits: *Fac / *Upp x2) -5/Upper Caves -5/Upper Caves -5/Zhirov -4/Proximity Caves -4/Factory -4/Waste -4/Factory (discovered 3 exits: *Upp x2 / Arm) -4/Upper Caves -4/Upper Caves (discovered 2 exits: *Res / *War) -4/Warlord -3/Proximity Caves -3/Research (discovered 3 exits: Res / *Qua x2) -3/Quarantine (discovered 2 exits: *Res / *Sec) -3/Section 7 -2/Research (discovered 2 exits: *Tes x2) -2/Testing -1/Access -1/Command (discovered 3 exits: [*Sur x2] / *Ac0) -1/Access_0 0b11 Command History --------- Turn | Location | Event 12 | -11/Scrapyard | Discovered new exit (range 14) 71 | -11/Scrapyard | Entered Materials 170 | -10/Materials | Discovered new exit (range 8) 314 | -10/Materials | Build established: Mutant 365 | -10/Materials | Discovered new exit (range 12) 588 | -10/Materials | Discovered new exit (range 9) 840 | -10/Materials | Discovered new exit (range 15) 889 | -10/Materials | Entered Mines 912 | -10/Mines | A weapon hastily lodged in a ceiling crevice suddenly fell to the ground 968 | -10/Mines | Found a damaged Exp. Sensor Array with a note attached 970 | -10/Mines | Found Prototype Device 970 | -10/Mines | Identified Exp. Sensor Array 1073 | -10/Mines | Learned Materials emergency access door positions 1103 | -10/Mines | Destroyed YI-UF0 1130 | -10/Mines | Lost 4 parts (1p1n1u1w) 1146 | -10/Mines | Discovered new exit (range 12) 1168 | -10/Mines | Received a Mining Laser from a helpful Derelict 1410 | -10/Mines | Discovered new exit (range 4) 1636 | -10/Mines | Entered Materials 1636 | -9/Materials | Evolved 2 slots: Utility x2 2080 | -9/Materials | Discovered new exit (range 16) 2275 | -9/Materials | Discovered new exit (range 9) 2603 | -9/Materials | Lost 3 parts (1n1u1w) 2859 | -9/Materials | Build established: Scavenger-Mutant 2864 | -9/Materials | Repaired Lgt. Armor Plating 2871 | -9/Materials | Discovered new exit (range 14) 3316 | -9/Materials | Destroyed 8 combat bots 3683 | -9/Materials | Discovered new exit (range 15) 3919 | -9/Materials | Entered Mines 3939 | -9/Mines | Learned Materials security intel 4164 | -9/Mines | Deemed a non-threat by the Exiles lab entrance 4164 | -9/Mines | Discovered new exit (range 5) 4552 | -9/Mines | Assembled infested the area 4661 | -9/Mines | Discovered new exit (range 8) 5187 | -9/Mines | Core integrity fell below 50% 5224 | -9/Mines | Lost 3 parts (2n1w) 5449 | -9/Mines | Discovered new exit (range 5) 5645 | -9/Mines | Entered Exiles 5692 | -9/Exiles | Met 8R-AWN 5722 | -9/Exiles | Met EX-HEX 5819 | -9/Exiles | Met EX-DEC 5860 | -9/Exiles | Visited The Gauntlet 6060 | -9/Exiles | Met EX-BIN 6240 | -9/Exiles | Learned location of Zion (-6) 6372 | -9/Exiles | Discovered new exit (range 10) 6388 | -9/Exiles | Entered Mines 6591 | -8/Mines | Build established: Mutant 6655 | -8/Mines | Core integrity fell below 20% 6680 | -8/Mines | Destroyed 7 combat bots 7012 | -8/Mines | Discovered new exit (range 8) 7022 | -8/Mines | Entered Materials 7022 | -8/Materials | Evolved 2 slots: Utility x2 7333 | -8/Materials | Build established: Hauler-Mutant 7895 | -8/Materials | Discovered new exit (range 7) 8168 | -8/Materials | Identified exit to Storage 8720 | -8/Materials | Entered Storage 9210 | -8/Storage | Core integrity fell below 50% 9449 | -8/Storage | Build established: Mutant 9913 | -8/Storage | Core integrity fell below 20% 9979 | -8/Storage | Discovered new exit (range 15) 10079 | -8/Storage | Met 01-MTF 10679 | -8/Storage | Destroyed 01-MTF 10762 | -8/Storage | Entered Factory 10762 | -7/Factory | Evolved 2 slots: Power x1, Utility x1 11126 | -7/Factory | Found Powered Armor 11218 | -7/Factory | Build established: Scavenger-Mutant 11367 | -7/Factory | Discovered new exit (range 15) 11584 | -7/Factory | Identified exit to Factory 11928 | -7/Factory | Discovered exit to Factory (range 11) 12097 | -7/Factory | Build established: Mutant 12258 | -7/Factory | Discovered new exit (range 2) 12259 | -7/Factory | Identified exit to Lower Caves 12513 | -7/Factory | Discovered exit to Factory (range 14) 13242 | -7/Factory | Fabricated Hcp. Storage Unit (x1) 13271 | -7/Factory | Fabricated Humpback (x1) 13296 | -7/Factory | Fabricated Humpback (x1) 13505 | -7/Factory | Sucked down chute 13505 | -7/Factory | Entered Waste 13506 | -7/Waste | Met a frightened Derelict 13520 | -7/Waste | EMP discharged 13520 | -7/Waste | System corruption reached 10% 13540 | -7/Waste | Spotted C-40 Crusher 13551 | -7/Waste | Allies destroyed C-40 Crusher 13553 | -7/Waste | Spotted C-40 Crusher 13555 | -7/Waste | Found Damper Plating 13572 | -7/Waste | Destroyed C-40 Crusher 13577 | -7/Waste | Build established: Hauler-Mutant 13599 | -7/Waste | Spotted C-40 Crusher 13606 | -7/Waste | Spotted C-40 Crusher 13616 | -7/Waste | Destroyed C-40 Crusher 13620 | -7/Waste | EMP discharged 13659 | -7/Waste | Destroyed C-40 Crusher 13686 | -7/Waste | Destroyed C-40 Crusher 13711 | -7/Waste | Spotted C-40 Crusher 13720 | -7/Waste | EMP discharged 13727 | -7/Waste | Destroyed C-40 Crusher 13757 | -7/Waste | Found Damper Plating 13764 | -7/Waste | Found Damper Plating 13820 | -7/Waste | EMP discharged 13835 | -7/Waste | Discovered new exit (range 12) 13854 | -7/Waste | Identified exit to Factory 13856 | -7/Waste | Entered Factory 13920 | -7/Factory | Repaired Hrd. Heavy Armor Plating 14001 | -7/Factory | Repaired Exp. Sensor Array 14895 | -7/Factory | Discovered exit to Factory (range 15) 15608 | -7/Factory | Garrison activated, responded to threat 16034 | -7/Factory | Garrison activated, responded to threat 16066 | -7/Factory | Destroyed 7 combat bots 16182 | -7/Factory | Discovered exit to Lower Caves (range 16) 16490 | -7/Factory | Entered Lower Caves 17166 | -7/Lower Caves | Attracted the attention of an 0b10 outpost 17207 | -7/Lower Caves | Destroyed 7 combat bots 17481 | -7/Lower Caves | Learned 4 Factory zone layouts 17551 | -7/Lower Caves | Discovered new exit (range 7) 17562 | -7/Lower Caves | Identified exit to Lower Caves 17565 | -7/Lower Caves | Entered another Lower Caves area 17565 | -7/Lower Caves | Accompanied by 2 allies 17652 | -7/Lower Caves | Discovered exit to Factory (range 8) 17694 | -7/Lower Caves | Encountered a Warlord checkpoint 17946 | -7/Lower Caves | Learned Factory trap positions 18251 | -7/Lower Caves | Discovered new exit (range 9) 18263 | -7/Lower Caves | Identified exit to Data Miner 18274 | -7/Lower Caves | Entered Data Miner 18274 | -7/Data Miner | Discovered new exit (range 6) 18286 | -7/Data Miner | Identified exit to Proximity Caves 18308 | -7/Data Miner | Met Data Miner 18340 | -7/Data Miner | Learned location of Section 7 (-3) 18340 | -7/Data Miner | Acquired the access code to Warlord's prototype stash 18374 | -7/Data Miner | Received God Mode back door access code from Data Miner 18648 | -7/Data Miner | Destroyed Data Miner 18651 | -7/Data Miner | Interfaced with the Data Conduit 18653 | -7/Data Miner | Found Deep Network Scanner 19016 | -7/Data Miner | Found Exp. Thermal Shield 19045 | -7/Data Miner | Entered Proximity Caves 19267 | -6/Proximity Caves | Spotted B-75 Beast 19762 | -6/Proximity Caves | Discovered exit to Factory (range 10) 19791 | -6/Proximity Caves | Entered Factory 19791 | -6/Factory | Evolved 2 slots: Utility x2 19792 | -6/Factory | Identified exit to Lower Caves 19794 | -6/Factory | Loaded intel: 109 trap records 19795 | -6/Factory | Loaded intel: 267 machine locations 20174 | -6/Factory | Repaired Hrd. Heavy Armor Plating 20594 | -6/Factory | Discovered new exit (range 6) 20614 | -6/Factory | Identified exit to Factory 20892 | -6/Factory | Discovered exit to Lower Caves (range 9) 20979 | -6/Factory | Repaired Arm. Huge Wheel 21030 | -6/Factory | Repaired Imp. Heavy Armor Plating 21079 | -6/Factory | Repaired Med. Reactive Plating 21155 | -6/Factory | Discovered new exit (range 10) 21362 | -6/Factory | Intercept squad dispatched 21398 | -6/Factory | Spotted Tracker 21403 | -6/Factory | Destroyed Tracker 21417 | -6/Factory | Found Exp. Targeting Computer 21422 | -6/Factory | Found Prototype Energy Gun 21423 | -6/Factory | Identified Immobilizer 21442 | -6/Factory | Spotted Combat Programmer 21492 | -6/Factory | Destroyed Combat Programmer 21722 | -6/Factory | Garrison activated, responded to threat 22003 | -6/Factory | Discovered new exit (range 13) 22031 | -6/Factory | Identified exit to Extension 22363 | -6/Factory | Fabricated Humpback (x1) 22828 | -6/Factory | Fabricated Combat Drone Bay? 22857 | -6/Factory | Repaired Imp. Heavy Armor Plating 23052 | -6/Factory | Entered Extension 23053 | -6/Extension | Loaded intel: 38 machine locations 23132 | -6/Extension | Rescued a captive Derelict 23133 | -6/Extension | Rescued a captive Derelict 23260 | -6/Extension | Rescued a captive Derelict 23261 | -6/Extension | Rescued a captive Derelict 24071 | -6/Extension | Allies destroyed B-75 Beast 24077 | -6/Extension | Disrupted transfer network 24614 | -6/Extension | Rescued A7 24782 | -6/Extension | Rescued a captive Derelict 25289 | -6/Extension | Discovered exit to Factory (range 16) 25290 | -6/Extension | Discovered new exit (range 15) 25313 | -6/Extension | Identified exit to Cetus 25394 | -6/Extension | Entered Cetus 25394 | -6/Cetus | Accompanied by 5 allies (A7) 25395 | -6/Cetus | Loaded intel: 24 machine locations 25399 | -6/Cetus | Acquired a Cetus Manufacturing Module code from A7 25436 | -6/Cetus | Spotted Cetus Guard 25438 | -6/Cetus | Spotted Cetus Guard 25441 | -6/Cetus | Allies destroyed Cetus Guard 25441 | -6/Cetus | Spotted Cetus Guard 25444 | -6/Cetus | Destroyed Cetus Guard 25447 | -6/Cetus | Spotted Cetus Guard 25451 | -6/Cetus | Allies destroyed Cetus Guard 25459 | -6/Cetus | Allies destroyed Cetus Guard 25560 | -6/Cetus | Cetus Manufacturing Module disabled 25619 | -6/Cetus | Failed to start Cetus Manufacturing Module 25692 | -6/Cetus | Escorted A7 to Cetus Mainframe 25743 | -6/Cetus | Discovered new exit (range 15) 25796 | -6/Cetus | Spotted Cetus Guard 25796 | -6/Cetus | Spotted Cetus Guard 25802 | -6/Cetus | Destroyed Cetus Guard 25802 | -6/Cetus | Destroyed Cetus Guard 25802 | -6/Cetus | Spotted Cetus Guard 25802 | -6/Cetus | Spotted Cetus Guard 25803 | -6/Cetus | Destroyed Cetus Guard 25809 | -6/Cetus | Destroyed Cetus Guard 25831 | -6/Cetus | Discovered exit to Factory (range 16) 25843 | -6/Cetus | Met Revision 17 25941 | -6/Cetus | Identified exit to Archives 25944 | -6/Cetus | Entered Archives 25944 | -6/Archives | Accompanied by 1 ally (A7) 25945 | -6/Archives | Loaded intel: 8 machine locations 25949 | -6/Archives | Received a hacking code to weaken MAIN.C 26012 | -6/Archives | Met Zhirov 26018 | -6/Archives | Reinforcements dispatched to Archives 26040 | -6/Archives | Read partially decrypted archive contents 26043 | -6/Archives | Discovered new exit (range 15) 26063 | -6/Archives | Reinforcements dispatched to Archives 26066 | -6/Archives | Identified exit to Hub_04(d) 26069 | -6/Archives | Entered Hub_04(d) 26070 | -6/Hub_04(d) | Loaded intel: 89 machine locations 26345 | -6/Hub_04(d) | Discovered exit to Factory (range 9) 26520 | -6/Hub_04(d) | Discovered exit to Factory (range 15) 26894 | -6/Hub_04(d) | Discovered exit to Factory (range 8) 26995 | -6/Hub_04(d) | Network Hub disabled 27077 | -6/Hub_04(d) | Spotted Lightning 27077 | -6/Hub_04(d) | Destroyed Lightning 27081 | -6/Hub_04(d) | Destroyed Lightning 27090 | -6/Hub_04(d) | Spotted Lightning 27093 | -6/Hub_04(d) | Destroyed Lightning 27102 | -6/Hub_04(d) | Found EM Dispersion Field 27108 | -6/Hub_04(d) | Found EMDS 27122 | -6/Hub_04(d) | Found Exp. Targeting Computer 27138 | -6/Hub_04(d) | Found EMDS 27148 | -6/Hub_04(d) | Found EM Dispersion Field 27241 | -6/Hub_04(d) | Network Hub disabled 27326 | -6/Hub_04(d) | Spotted Lightning 27340 | -6/Hub_04(d) | Destroyed Lightning 27375 | -6/Hub_04(d) | Spotted Lightning 27375 | -6/Hub_04(d) | Spotted Lightning 27380 | -6/Hub_04(d) | Destroyed Lightning 27389 | -6/Hub_04(d) | Destroyed Lightning 27497 | -6/Hub_04(d) | Intercept squad dispatched 27508 | -6/Hub_04(d) | Spotted Tracker 27515 | -6/Hub_04(d) | Destroyed Tracker 27523 | -6/Hub_04(d) | Spotted Combat Programmer 27559 | -6/Hub_04(d) | Destroyed Combat Programmer 27722 | -6/Hub_04(d) | Spotted Lightning 27736 | -6/Hub_04(d) | Destroyed Lightning 27739 | -6/Hub_04(d) | Destroyed Lightning 27758 | -6/Hub_04(d) | Destroyed Lightning 27793 | -6/Hub_04(d) | Found EMDS 27799 | -6/Hub_04(d) | Found EMDS 27800 | -6/Hub_04(d) | Network Hub disabled 27800 | -6/Hub_04(d) | Discovered exit to Factory (range 11) 27819 | -6/Hub_04(d) | First assault squad dispatched 27868 | -6/Hub_04(d) | Core integrity fell below 50% 28039 | -6/Hub_04(d) | Found EMDS 28110 | -6/Hub_04(d) | Network Hub disabled 28189 | -6/Hub_04(d) | Entered Factory 28189 | -5/Factory | Evolved 2 slots: Utility x2 28190 | -5/Factory | Loaded intel: 252 machine locations 28640 | -5/Factory | Fabricated Humpback? 28748 | -5/Factory | Fabricated Humpback (x1) 28804 | -5/Factory | Fabricated Hvy. Reactive Plating (x1) 28839 | -5/Factory | Fabricated Armor Integrity Analyzer (x1) 29472 | -5/Factory | Sucked down chute 29472 | -5/Factory | Entered Waste 29490 | -5/Waste | Spotted C-40 Crusher 29530 | -5/Waste | Spotted C-40 Crusher 29604 | -5/Waste | Spotted C-40 Crusher 29605 | -5/Waste | Spotted C-40 Crusher 29699 | -5/Waste | Destroyed C-40 Crusher 29737 | -5/Waste | Found Damper Plating 29745 | -5/Waste | Destroyed C-40 Crusher 29778 | -5/Waste | Spotted C-40 Crusher 29778 | -5/Waste | Spotted C-40 Crusher 29869 | -5/Waste | Destroyed C-40 Crusher 29897 | -5/Waste | Destroyed C-40 Crusher 29914 | -5/Waste | Found Damper Plating 29946 | -5/Waste | Destroyed C-40 Crusher 29982 | -5/Waste | Destroyed C-40 Crusher 30149 | -5/Waste | Discovered new exit (range 15) 30560 | -5/Waste | Identified exit to Factory 30562 | -5/Waste | Entered Factory 30563 | -5/Factory | Loaded intel: 275 machine locations 31224 | -5/Factory | Discovered new exit (range 10) 31580 | -5/Factory | Intercept squad dispatched 31600 | -5/Factory | Spotted Tracker 31643 | -5/Factory | Destroyed Tracker 31656 | -5/Factory | Spotted Combat Programmer 31693 | -5/Factory | Destroyed Combat Programmer 31987 | -5/Factory | Identified exit to Upper Caves 32119 | -5/Factory | Repaired Hrd. Heavy Armor Plating 32145 | -5/Factory | Repaired Hvy. Reactive Plating? 32564 | -5/Factory | Fabricated Exp. Signal Interpreter (x1) 32874 | -5/Factory | Destroyed 7 combat bots 33345 | -5/Factory | Repaired Broken EM Dispersion Field 34177 | -5/Factory | Intercept squad dispatched 34213 | -5/Factory | Spotted Tracker 34227 | -5/Factory | Destroyed Tracker 34235 | -5/Factory | Spotted Combat Programmer 34253 | -5/Factory | Destroyed Combat Programmer 34480 | -5/Factory | Entered Upper Caves 34482 | -5/Upper Caves | Attracted the attention of an 0b10 checkpoint 35704 | -5/Upper Caves | Discovered new exit (range 4) 35711 | -5/Upper Caves | Identified exit to Upper Caves 35790 | -5/Upper Caves | Entered another Upper Caves area 35790 | -5/Upper Caves | Accompanied by 4 allies 36500 | -5/Upper Caves | Discovered new exit (range 13) 36879 | -5/Upper Caves | Identified exit to Zhirov 36890 | -5/Upper Caves | Entered Zhirov 36890 | -5/Zhirov | Accompanied by 4 allies 36890 | -5/Zhirov | Discovered new exit (range 3) 36897 | -5/Zhirov | Identified exit to Proximity Caves 37087 | -5/Zhirov | Found Alien Artifact 37087 | -5/Zhirov | Identified Integrated Dissipator 37087 | -5/Zhirov | Installed Integrated Dissipator, increased core heat dissipation (+20) 37127 | -5/Zhirov | Found Alien Artifact 37449 | -5/Zhirov | Entered Proximity Caves 37449 | -4/Proximity Caves | Accompanied by 4 allies 37853 | -4/Proximity Caves | Destroyed 8 combat bots 37953 | -4/Proximity Caves | Discovered new exit (range 8) 37973 | -4/Proximity Caves | Identified exit to Factory 38364 | -4/Proximity Caves | Entered Factory 38364 | -4/Factory | Accompanied by 4 allies 38364 | -4/Factory | Evolved 2 slots: Utility x2 38365 | -4/Factory | Loaded intel: 257 machine locations 38489 | -4/Factory | Repaired Centrium Heavy Treads? 38652 | -4/Factory | P-70 Sage assimilated allied 7T-35A(l) 38683 | -4/Factory | Repaired Imp. Energy Well 39299 | -4/Factory | Discovered new exit (range 8) 39531 | -4/Factory | Intercept squad dispatched 39537 | -4/Factory | Spotted Tracker 39555 | -4/Factory | Destroyed Tracker 39590 | -4/Factory | Spotted Combat Programmer 39684 | -4/Factory | Destroyed Combat Programmer 39762 | -4/Factory | Found EMDS 39769 | -4/Factory | Found Exp. Remote Datajack 39907 | -4/Factory | Fabricated Centrium Wheel? 40010 | -4/Factory | Fabricated Hcp. Storage Unit? 40140 | -4/Factory | Fabricated Humpback (x1) 40401 | -4/Factory | Fabricated Hvy. Reactive Plating (x1) 40918 | -4/Factory | Intercept squad dispatched 40939 | -4/Factory | Spotted Tracker 40940 | -4/Factory | Spotted Tracker 40948 | -4/Factory | Destroyed Tracker 40954 | -4/Factory | Destroyed Tracker 40966 | -4/Factory | Spotted Combat Programmer 41002 | -4/Factory | Destroyed Combat Programmer 41003 | -4/Factory | Spotted Combat Programmer 41114 | -4/Factory | First assault squad dispatched 41220 | -4/Factory | Destroyed Combat Programmer 41530 | -4/Factory | Sucked down chute 41530 | -4/Factory | Entered Waste 41536 | -4/Waste | Found Broken Adv. Powered Armor 41545 | -4/Waste | EMP discharged 41550 | -4/Waste | Spotted C-40 Crusher 41579 | -4/Waste | Destroyed C-40 Crusher 41590 | -4/Waste | Found Damper Plating 41624 | -4/Waste | Spotted C-40 Crusher 41645 | -4/Waste | EMP discharged 41645 | -4/Waste | System corruption reached 10% 41745 | -4/Waste | EMP discharged 41746 | -4/Waste | Destroyed C-40 Crusher 41753 | -4/Waste | Destroyed C-40 Crusher 41771 | -4/Waste | Found Damper Plating 41845 | -4/Waste | EMP discharged 41908 | -4/Waste | Spotted C-40 Crusher 41921 | -4/Waste | Spotted C-40 Crusher 41945 | -4/Waste | EMP discharged 41981 | -4/Waste | Destroyed C-40 Crusher 41997 | -4/Waste | Destroyed C-40 Crusher 42010 | -4/Waste | Found Damper Plating 42011 | -4/Waste | Spotted C-40 Crusher 42015 | -4/Waste | Found Damper Plating 42034 | -4/Waste | Destroyed C-40 Crusher 42045 | -4/Waste | EMP discharged 42134 | -4/Waste | Discovered new exit (range 15) 42145 | -4/Waste | EMP discharged 42245 | -4/Waste | EMP discharged 42345 | -4/Waste | EMP discharged 42445 | -4/Waste | EMP discharged 42545 | -4/Waste | EMP discharged 42645 | -4/Waste | EMP discharged 42745 | -4/Waste | EMP discharged 42845 | -4/Waste | EMP discharged 42945 | -4/Waste | EMP discharged 43045 | -4/Waste | EMP discharged 43145 | -4/Waste | EMP discharged 43245 | -4/Waste | EMP discharged 43345 | -4/Waste | EMP discharged 43445 | -4/Waste | EMP discharged 43545 | -4/Waste | EMP discharged 43558 | -4/Waste | Identified exit to Factory 43645 | -4/Waste | EMP discharged 43745 | -4/Waste | EMP discharged 43833 | -4/Waste | Met Warlord forces unprepared to attack 43845 | -4/Waste | EMP discharged 43945 | -4/Waste | EMP discharged 44045 | -4/Waste | EMP discharged 44145 | -4/Waste | EMP discharged 44245 | -4/Waste | EMP discharged 44345 | -4/Waste | EMP discharged 44445 | -4/Waste | EMP discharged 44545 | -4/Waste | EMP discharged 44645 | -4/Waste | EMP discharged 44745 | -4/Waste | EMP discharged 44845 | -4/Waste | EMP discharged 44945 | -4/Waste | EMP discharged 45045 | -4/Waste | EMP discharged 45145 | -4/Waste | EMP discharged 45245 | -4/Waste | EMP discharged 45345 | -4/Waste | EMP discharged 45445 | -4/Waste | EMP discharged 45545 | -4/Waste | EMP discharged 45645 | -4/Waste | EMP discharged 45745 | -4/Waste | EMP discharged 45845 | -4/Waste | EMP discharged 45945 | -4/Waste | EMP discharged 46045 | -4/Waste | EMP discharged 46145 | -4/Waste | EMP discharged 46245 | -4/Waste | EMP discharged 46345 | -4/Waste | EMP discharged 46445 | -4/Waste | EMP discharged 46545 | -4/Waste | EMP discharged 46645 | -4/Waste | EMP discharged 46745 | -4/Waste | EMP discharged 46845 | -4/Waste | EMP discharged 46945 | -4/Waste | EMP discharged 47045 | -4/Waste | EMP discharged 47145 | -4/Waste | EMP discharged 47245 | -4/Waste | EMP discharged 47345 | -4/Waste | EMP discharged 47445 | -4/Waste | EMP discharged 47545 | -4/Waste | EMP discharged 47645 | -4/Waste | EMP discharged 47745 | -4/Waste | EMP discharged 47845 | -4/Waste | EMP discharged 47945 | -4/Waste | EMP discharged 48045 | -4/Waste | EMP discharged 48145 | -4/Waste | EMP discharged 48245 | -4/Waste | EMP discharged 48345 | -4/Waste | EMP discharged 48445 | -4/Waste | EMP discharged 48545 | -4/Waste | EMP discharged 48645 | -4/Waste | EMP discharged 48745 | -4/Waste | EMP discharged 48845 | -4/Waste | EMP discharged 48945 | -4/Waste | EMP discharged 49045 | -4/Waste | EMP discharged 49145 | -4/Waste | EMP discharged 49245 | -4/Waste | EMP discharged 49345 | -4/Waste | EMP discharged 49445 | -4/Waste | EMP discharged 49545 | -4/Waste | EMP discharged 49645 | -4/Waste | EMP discharged 49745 | -4/Waste | EMP discharged 49845 | -4/Waste | EMP discharged 49945 | -4/Waste | EMP discharged 50002 | -4/Waste | Entered Factory 50003 | -4/Factory | Loaded intel: 243 machine locations 50093 | -4/Factory | Repaired Broken Enh. Nova Cannon 50698 | -4/Factory | Identified exit to Upper Caves 50698 | -4/Factory | Identified exit to Armory 50859 | -4/Factory | Repaired Hvy. Reactive Plating 50882 | -4/Factory | Repaired Med. Reactive Plating 50930 | -4/Factory | Repaired Broken Adv. Powered Armor? 51009 | -4/Factory | Fabricated Assault Drone Bay? 51152 | -4/Factory | Fabricated Exp. Transmission Jammer (x1) 51176 | -4/Factory | Fabricated Tactical Coordination Suite (x1) 51205 | -4/Factory | Local fabrication network quarantined 51315 | -4/Factory | Entered Upper Caves 51358 | -4/Upper Caves | Acquired the password to a Derelict Tinkerer's latest research 51377 | -4/Upper Caves | Found Prototype Special Weapon 51458 | -4/Upper Caves | Caught by Unaware searching for contraband prototypes 51489 | -4/Upper Caves | Identified Molecular Deconstructor 51793 | -4/Upper Caves | Caught by Unaware searching for contraband prototypes 52197 | -4/Upper Caves | Learned 8 Research zone layouts 52346 | -4/Upper Caves | Discovered new exit (range 9) 52389 | -4/Upper Caves | Identified exit to Upper Caves 52395 | -4/Upper Caves | Entered another Upper Caves area 52486 | -4/Upper Caves | Discovered new exit (range 10) 52520 | -4/Upper Caves | Identified exit to Research 53029 | -4/Upper Caves | Discovered new exit (range 4) 53037 | -4/Upper Caves | Identified exit to Warlord 53082 | -4/Upper Caves | Entered Warlord 53131 | -4/Warlord | Discovered new exit (range 13) 53147 | -4/Warlord | Identified exit to Proximity Caves 54068 | -4/Warlord | Found Thermal Barrier 54078 | -4/Warlord | Found Vortex Chain Reactor 54094 | -4/Warlord | Found System Mapper 54168 | -4/Warlord | Warlord's base attacked by MAIN.C 54278 | -4/Warlord | Met Warlord 54298 | -4/Warlord | Opened Warlord's prototype stash 54477 | -4/Warlord | Found Prototype Energy Gun 54477 | -4/Warlord | Identified Vortex Shotgun 54486 | -4/Warlord | Found Prototype Energy Cannon 54486 | -4/Warlord | Identified Vortex Driver 54490 | -4/Warlord | Found Vortex Driver 54518 | -4/Warlord | Warlord forces counterattacked 54696 | -4/Warlord | Opened side exit 54744 | -4/Warlord | Entered Proximity Caves 54791 | -3/Proximity Caves | Spotted B-86 Titan 55386 | -3/Proximity Caves | Received a Behemoth hack from an annoying Tinkerer 55601 | -3/Proximity Caves | Crushed by falling debris 55645 | -3/Proximity Caves | Discovered exit to Research (range 15) 55650 | -3/Proximity Caves | Attracted the attention of an 0b10 checkpoint 55708 | -3/Proximity Caves | Destroyed 8 combat bots 55715 | -3/Proximity Caves | Entered Research 55715 | -3/Research | Evolved 2 slots: Utility x2 55716 | -3/Research | Identified exit to Research 55717 | -3/Research | Loaded intel: 115 machine locations 56042 | -3/Research | Repaired Hvy. Reactive Plating 56051 | -3/Research | Repaired Hcp. Storage Unit 56137 | -3/Research | Identified exit to Quarantine 56431 | -3/Research | Intercept squad dispatched 56450 | -3/Research | Spotted Tracker 56453 | -3/Research | Destroyed Tracker 56536 | -3/Research | Spotted Combat Programmer 56667 | -3/Research | Destroyed Combat Programmer 56735 | -3/Research | Repaired Centrium Wheel 56818 | -3/Research | Fabricated Adv. Armor Integrity Analyzer (x1) 56831 | -3/Research | Fabricated Hcp. Storage Unit (x1) 56845 | -3/Research | Fabricated Humpback (x1) 57692 | -3/Research | Spotted B-90 Cyclops 57810 | -3/Research | Destroyed B-90 Cyclops 57865 | -3/Research | Entered Quarantine 57866 | -3/Quarantine | Loaded intel: 71 machine locations 58021 | -3/Quarantine | Found Alien Artifact 58288 | -3/Quarantine | Found Alien Energy Cannon 58288 | -3/Quarantine | Identified Core Cannon 58438 | -3/Quarantine | Identified Core Reset Matrix 58439 | -3/Quarantine | Identified Transdimensional Reconstructor 58504 | -3/Quarantine | Found Alien Artifact 58505 | -3/Quarantine | Identified Subatomic Replicator 58595 | -3/Quarantine | Found Alien Artifact 58682 | -3/Quarantine | Identified Hpw. Transdimensional Reconstructor 58766 | -3/Quarantine | Intercept squad dispatched 58775 | -3/Quarantine | Spotted Tracker 58802 | -3/Quarantine | Spotted Combat Programmer 58963 | -3/Quarantine | Destroyed Combat Programmer 59000 | -3/Quarantine | Found EMDS 59027 | -3/Quarantine | Found Alien Artifact 59279 | -3/Quarantine | Identified Dimensional Node Initializer 59321 | -3/Quarantine | Found Alien Slashing Weapon 59321 | -3/Quarantine | Identified Sigix Broadsword 59499 | -3/Quarantine | Repaired Exp. Sensor Array 59547 | -3/Quarantine | Repaired Hcp. Storage Unit 59865 | -3/Quarantine | First assault squad dispatched 60009 | -3/Quarantine | Found Alien Artifact 60009 | -3/Quarantine | Identified Matter Drive 60192 | -3/Quarantine | Spotted Fortress 60316 | -3/Quarantine | Destroyed Fortress 60472 | -3/Quarantine | Discovered new exit (range 5) 60477 | -3/Quarantine | Identified exit to Section 7 60480 | -3/Quarantine | Entered Section 7 60481 | -3/Section 7 | Loaded intel: 138 machine locations 60492 | -3/Section 7 | Spotted S7 Guard 60498 | -3/Section 7 | Destroyed S7 Guard 60521 | -3/Section 7 | Found Alien Artifact 60637 | -3/Section 7 | Repaired Hvy. Reactive Plating 60955 | -3/Section 7 | Discovered exit to Research (range 15) 60990 | -3/Section 7 | Found Alien Artifact 61110 | -3/Section 7 | Found Alien Artifact 61137 | -3/Section 7 | Spotted S7 Guard 61167 | -3/Section 7 | Destroyed S7 Guard 61183 | -3/Section 7 | Found Prototype Protection 61183 | -3/Section 7 | Identified Hvy. Regenerative Plating 61200 | -3/Section 7 | Initialized slip node 61216 | -3/Section 7 | Found Alien Artifact 61352 | -3/Section 7 | Identified Integrated Reactor 61352 | -3/Section 7 | Installed Integrated Reactor, increased core energy generation (+10) 61353 | -3/Section 7 | Identified Integrity Redistributor 61354 | -3/Section 7 | Identified Core Membrane 61354 | -3/Section 7 | Installed Core Membrane, gained immunity to corruption 61361 | -3/Section 7 | Identified Core Regenerator 61565 | -3/Section 7 | Found Integrated Reactor 61565 | -3/Section 7 | Installed Integrated Reactor, increased core energy generation (+10) 62047 | -3/Section 7 | Spotted S7 Guard 62051 | -3/Section 7 | Destroyed S7 Guard 62152 | -3/Section 7 | Found Alien Artifact 62518 | -3/Section 7 | Garrison activated, responded to threat 62561 | -3/Section 7 | Destroyed 7 combat bots 62701 | -3/Section 7 | Intercept squad dispatched 62714 | -3/Section 7 | Spotted Tracker 62714 | -3/Section 7 | Spotted Tracker 62724 | -3/Section 7 | Destroyed Tracker 62728 | -3/Section 7 | Scanned by Researcher 62747 | -3/Section 7 | Spotted Combat Programmer 62747 | -3/Section 7 | Spotted Combat Programmer 62749 | -3/Section 7 | Destroyed Tracker 62789 | -3/Section 7 | Destroyed Combat Programmer 62938 | -3/Section 7 | Destroyed Combat Programmer 63023 | -3/Section 7 | Destroyed Executioner 63029 | -3/Section 7 | Destroyed Executioner 63366 | -3/Section 7 | Found Alien Energy Gun 63369 | -3/Section 7 | Found Alien Energy Gun 63370 | -3/Section 7 | Identified Sigix Quantum Sheargun (x2) 63730 | -3/Section 7 | First assault squad dispatched 63741 | -3/Section 7 | Intercept squad dispatched 63756 | -3/Section 7 | Spotted Tracker 63764 | -3/Section 7 | Destroyed Tracker 63803 | -3/Section 7 | Spotted Combat Programmer 63873 | -3/Section 7 | Destroyed Combat Programmer 63894 | -3/Section 7 | Destroyed 9 combat bots 63915 | -3/Section 7 | Found Alien Artifact 63917 | -3/Section 7 | Found Alien Artifact 63991 | -3/Section 7 | Found Integrity Redistributor 63991 | -3/Section 7 | Used Integrity Redistributor, redistributed integrity from core (-174) 63999 | -3/Section 7 | Found Integrity Redistributor 64103 | -3/Section 7 | Found Integrity Redistributor 64442 | -3/Section 7 | Found Sigix Quantum Sheargun 64448 | -3/Section 7 | Found Sigix Quantum Sheargun 64688 | -3/Section 7 | Found Transdimensional Reconstructor 64877 | -3/Section 7 | Identified Integrated Heat Negator 64877 | -3/Section 7 | Identified LRC Energy Well 64877 | -3/Section 7 | Identified LRC Insulator 64881 | -3/Section 7 | Installed LRC Insulator, gained EM resistance (25) 64883 | -3/Section 7 | Installed LRC Energy Well, increased energy storage capacity (+250) 64884 | -3/Section 7 | Warped through subspace to slip node 64920 | -3/Section 7 | Installed Integrated Heat Negator, increased core heat dissipation (+40) 64926 | -3/Section 7 | Entered Research 64926 | -2/Research | Warlord forces began assault on 0b10 64926 | -2/Research | Evolved 2 slots: Utility x1, Weapon x1 64927 | -2/Research | Identified exit to Testing 64928 | -2/Research | Loaded intel: 107 machine locations 64964 | -2/Research | Found Ragnarok Missile Launcher 65036 | -2/Research | Research machine network offline 65211 | -2/Research | Borebot progress halted 65376 | -2/Research | Warlord destroyed during the assault 65564 | -2/Research | Borebot progress halted 65580 | -2/Research | Borebot progress halted 65592 | -2/Research | Borebot progress halted 65602 | -2/Research | Borebot progress halted 65658 | -2/Research | Borebot progress halted 65701 | -2/Research | Spotted B-90 Cyclops 65715 | -2/Research | Spotted Striker 65759 | -2/Research | System corruption reached 10% 65759 | -2/Research | System corruption reached 30% 65885 | -2/Research | Spotted Executioner 65900 | -2/Research | Destroyed Executioner 66040 | -2/Research | Spotted Striker 66041 | -2/Research | Entered Testing 66042 | -2/Testing | Loaded intel: 62 machine locations 66054 | -2/Testing | Used Integrity Redistributor, redistributed integrity from core (-255) 66173 | -2/Testing | Found Exp. Hacking Suite 66490 | -2/Testing | Discovered new exit (range 13) 66621 | -2/Testing | Found Exp. Armor Integrity Analyzer 66791 | -2/Testing | First assault squad dispatched 66821 | -2/Testing | Found Prototype Protection 66821 | -2/Testing | Identified SHELL Armor 67142 | -2/Testing | Found Prototype Ballistic Cannon 67142 | -2/Testing | Identified Omega Cannon 67226 | -2/Testing | Found Quantum Capacitor 67632 | -2/Testing | Spotted PG-1CCZOPSOAR 67642 | -2/Testing | Rewired PG-1CCZOPSOAR 67684 | -2/Testing | Destroyed PG-1CCZOPSOAR 68068 | -2/Testing | Found Faulty Exp. Force Field 68243 | -2/Testing | Fabricated Exp. Force Field? 68409 | -2/Testing | Destroyed 8 combat bots 68428 | -2/Testing | Local fabrication network quarantined 68450 | -2/Testing | Intercept squad dispatched 68452 | -2/Testing | Spotted Tracker 68453 | -2/Testing | Spotted Tracker 68457 | -2/Testing | Destroyed Tracker 68461 | -2/Testing | Spotted Combat Programmer 68461 | -2/Testing | Spotted Combat Programmer 68476 | -2/Testing | Destroyed Tracker 68514 | -2/Testing | Destroyed Combat Programmer 68540 | -2/Testing | Destroyed Combat Programmer 68553 | -2/Testing | Found Prototype Processor 68559 | -2/Testing | Found EMDS 68645 | -2/Testing | Identified exit to Access 68655 | -2/Testing | Entered Access 68655 | -1/Access | Evolved 2 slots: Propulsion x1, Utility x1 68656 | -1/Access | Loaded intel: 119 machine locations 68914 | -1/Access | Fabricated Exp. Force Field (x1) 68954 | -1/Access | Fabricated Exp. Biometal Heavy Treads (x1) 69049 | -1/Access | Local fabrication network quarantined 69405 | -1/Access | First assault squad dispatched 69449 | -1/Access | Intercept squad dispatched 69473 | -1/Access | Spotted Tracker 69474 | -1/Access | Spotted Tracker 69481 | -1/Access | Destroyed Tracker 69485 | -1/Access | Spotted Combat Programmer 69488 | -1/Access | Destroyed Tracker 69498 | -1/Access | Destroyed Combat Programmer 69519 | -1/Access | Spotted Combat Programmer 69528 | -1/Access | Destroyed Combat Programmer 70089 | -1/Access | Destroyed 14 combat bots 70117 | -1/Access | Found Prototype Ballistic Gun 70117 | -1/Access | Identified Multirail 70122 | -1/Access | Found Multirail 70152 | -1/Access | Found Adv. Kinecellerator 70419 | -1/Access | Repaired Broken Centrium Wheel 70577 | -1/Access | Discovered new exit (range 6) 70584 | -1/Access | Identified exit to Command 70951 | -1/Access | Used Integrity Redistributor, redistributed integrity from core (-235) 70964 | -1/Access | Entered Command 70965 | -1/Command | Loaded intel: 60 machine locations 70965 | -1/Command | Identified Exp. Target Analyzer 71017 | -1/Command | Spotted B-99 Colossus 71021 | -1/Command | Befriended a Behemoth using the annoying Tinkerer's hack 71082 | -1/Command | Disengaged cave seal 71082 | -1/Command | Wild derelicts emerged from the dark tunnel 71186 | -1/Command | Spotted B-99 Colossus 71220 | -1/Command | Rewired B-99 Colossus 71258 | -1/Command | First assault squad dispatched 71373 | -1/Command | Spotted M Guard 71373 | -1/Command | Spotted M Guard 71373 | -1/Command | Spotted Combat Programmer 71380 | -1/Command | Spotted Combat Programmer 71395 | -1/Command | Destroyed M Guard 71411 | -1/Command | Destroyed M Guard 71417 | -1/Command | Combat Programmer assimilated allied Colossus 10a 71454 | -1/Command | Destroyed Colossus 10a 71486 | -1/Command | Destroyed Combat Programmer 71525 | -1/Command | Destroyed Combat Programmer 71525 | -1/Command | Destroyed all MAIN.C guards 71569 | -1/Command | Found Prototype Device 71570 | -1/Command | Identified AEGIS Remote Shield 71574 | -1/Command | Found Zero-point Reactor 71578 | -1/Command | Found Zero-point Reactor 71605 | -1/Command | Found Prototype Energy Cannon 71605 | -1/Command | Identified Cld. Nova Cannon 71613 | -1/Command | Found Zero-point Reactor 71707 | -1/Command | Found Multirail 71876 | -1/Command | Met MAIN.C 71882 | -1/Command | 0b10 Conduit disabled 72220 | -1/Command | Hacked MAIN.C using A7's code 72242 | -1/Command | Destroyed MAIN.C Shell 72243 | -1/Command | MAIN.C activated Command garrisons 72309 | -1/Command | Destroyed MAIN.C 72329 | -1/Command | Found Prototype Device 72330 | -1/Command | Identified Beam Splitter 72338 | -1/Command | Found Prototype Protection 72339 | -1/Command | Identified Exp. Powered Armor 72344 | -1/Command | Found Exp. Powered Armor 72356 | -1/Command | Found Exp. Targeting Computer 72364 | -1/Command | Found Omega Cannon 72549 | -1/Command | Phase Generator disabled 72550 | -1/Command | Destroyed 21 combat bots 73063 | -1/Command | Build established: Scavenger-Mutant 73529 | -1/Command | Found Prototype Ballistic Gun 73529 | -1/Command | Identified Hyp. Multirail 73662 | -1/Command | Found Exp. Weapon Cycler 73665 | -1/Command | Found Beam Splitter 73681 | -1/Command | Found Hyp. Multirail 73686 | -1/Command | Found Hyp. Multirail 73764 | -1/Command | Found Zero-point Reactor 73772 | -1/Command | Found Zero-point Reactor 73776 | -1/Command | Found Vortex Chain Reactor 73821 | -1/Command | Used Subatomic Replicator to replicate Core Regenerator 73828 | -1/Command | Used Core Regenerator, restored core integrity (+377) 74225 | -1/Command | Build established: Hauler-Mutant 74681 | -1/Command | Discovered new exit (range 6) 75403 | -1/Command | Found Exp. Targeting Computer 75421 | -1/Command | Discovered new exit (range 8) 75870 | -1/Command | Found Exp. Focal Shield 76062 | -1/Command | Warped through subspace to slip node 76062 | -1/Command | Discovered new exit (range 4) 76072 | -1/Command | Entered Access_0 76073 | -1/Access_0 | Loaded intel: 54 machine locations 76073 | -1/Access_0 | Met Architect 76083 | -1/Access_0 | Architect warped through subspace 76109 | -1/Access_0 | Destroyed A8 76126 | -1/Access_0 | Architect warped through subspace 76181 | -1/Access_0 | Architect warped through subspace 76216 | -1/Access_0 | Architect warped through subspace 76222 | -1/Access_0 | Subspace Access Node disabled 76259 | -1/Access_0 | Architect warped through subspace 76289 | -1/Access_0 | Architect warped through subspace 76316 | -1/Access_0 | Architect warped through subspace 76350 | -1/Access_0 | Architect warped through subspace 76382 | -1/Access_0 | Spotted Enhanced Programmer 76388 | -1/Access_0 | Architect warped through subspace 76419 | -1/Access_0 | Spotted Enhanced Programmer 76430 | -1/Access_0 | Destroyed Enhanced Programmer 76431 | -1/Access_0 | Destroyed Enhanced Programmer 76453 | -1/Access_0 | Architect warped through subspace 76455 | -1/Access_0 | Spotted Enhanced Programmer 76461 | -1/Access_0 | Destroyed Enhanced Programmer 76477 | -1/Access_0 | Architect warped through subspace 76492 | -1/Access_0 | Spotted Enhanced Programmer 76514 | -1/Access_0 | Architect warped through subspace 76524 | -1/Access_0 | Subspace Access Node disabled 76562 | -1/Access_0 | Architect warped through subspace 76583 | -1/Access_0 | Architect warped through subspace 76589 | -1/Access_0 | Lost 4 parts (1n2u1w) 76621 | -1/Access_0 | Subspace Access Node disabled 76658 | -1/Access_0 | Used Core Regenerator, restored core integrity (+400) 76659 | -1/Access_0 | Used Integrity Redistributor, redistributed integrity from core (-298) 76674 | -1/Access_0 | Subspace Access Node disabled 76785 | -1/Access_0 | Found Alien Energy Gun 76786 | -1/Access_0 | Identified Modified Quantum Sheargun 76803 | -1/Access_0 | Found Prototype Energy Gun 76803 | -1/Access_0 | Identified Enh. Gamma Rifle 76840 | -1/Access_0 | Spotted Enhanced Programmer 76847 | -1/Access_0 | A6 warped into view 76850 | -1/Access_0 | Destroyed A6 76858 | -1/Access_0 | Destroyed Enhanced Programmer 76865 | -1/Access_0 | Destroyed Enhanced Programmer 76937 | -1/Access_0 | Build established: Scavenger-Mutant 76945 | -1/Access_0 | Found Thermal Barrier 77018 | -1/Access_0 | Spotted Enhanced Programmer 77036 | -1/Access_0 | Destroyed Enhanced Programmer 77368 | -1/Access_0 | Found Sigix Corpse 77450 | -1/Access_0 | Found Integrated Reactor 77450 | -1/Access_0 | Installed Integrated Reactor, increased core energy generation (+10) 77747 | -1/Access_0 | A5 warped into view 77871 | -1/Access_0 | Found Integrated Dissipator 77871 | -1/Access_0 | Installed Integrated Dissipator, increased core heat dissipation (+20) 77920 | -1/Access_0 | Found Prototype Device 77920 | -1/Access_0 | Identified Desublimator 77961 | -1/Access_0 | Spotted Enhanced Programmer 77963 | -1/Access_0 | Destroyed Enhanced Programmer 77990 | -1/Access_0 | Destroyed A5 78106 | -1/Access_0 | Spotted Enhanced Programmer 78119 | -1/Access_0 | Destroyed Enhanced Programmer 78376 | -1/Access_0 | Spotted Enhanced Programmer 78383 | -1/Access_0 | Destroyed Enhanced Programmer 78541 | -1/Access_0 | Spotted Enhanced Programmer 78545 | -1/Access_0 | Destroyed Enhanced Programmer 78621 | -1/Access_0 | A4 warped into view 78785 | -1/Access_0 | Destroyed A4 79077 | -1/Access_0 | Found Prototype Launcher 79077 | -1/Access_0 | Identified Point Singularity Launcher 79968 | -1/Access_0 | Destroyed A2 79978 | -1/Access_0 | Extracted Singularity Gate Test 138-C access codes from A2's data core 80080 | -1/Access_0 | Found ST Field Compressor 80119 | -1/Access_0 | A3 warped into view 80155 | -1/Access_0 | Destroyed A3 80173 | -1/Access_0 | Found Prototype Ballistic Gun 80173 | -1/Access_0 | Identified A3's Sniper Rifle 80176 | -1/Access_0 | Destroyed 7 combat bots 80715 | -1/Access_0 | Started Test 138-B, establishing a local singularity 80716 | -1/Access_0 | Started Test 138-B, establishing a local singularity 80716 | -1/Access_0 | Singularity Gate disabled 80717 | -1/Access_0 | Singularity Gate disabled 81288 | -1/Access_0 | Found Hpw. Transdimensional Reconstructor 81762 | -1/Access_0 | Found Enh. Gamma Rifle 81765 | -1/Access_0 | Found Enh. Gamma Rifle 82141 | -1/Access_0 | Build established: Scavenger-Gunner 82336 | -1/Access_0 | Destroyed Architect 82340 | -1/Access_0 | Found Prototype Protection 82340 | -1/Access_0 | Identified Centrium Linked Plating 82345 | -1/Access_0 | Found Prototype Hackware 82345 | -1/Access_0 | Identified Architect God Chip D 82347 | -1/Access_0 | Extracted unknown sensor trigger ID from Architect's data core 82364 | -1/Access_0 | Found Prototype Hackware 82365 | -1/Access_0 | Identified Architect God Chip A 82405 | -1/Access_0 | Found Architect God Chip A 82407 | -1/Access_0 | Found Architect God Chip D 82424 | -1/Access_0 | Found Architect God Chip D 82460 | -1/Access_0 | Found Architect God Chip A 82463 | -1/Access_0 | Found Architect God Chip A 82747 | -1/Access_0 | Build established: Wizard-Gunner 83702 | -1/Access_0 | Warped through subspace to slip node 83702 | -1/Access_0 | Discovered new exit (range 8) 83705 | -1/Access_0 | Found Architect God Chip D 83715 | *** | Establishing 0b11! Last Messages --------------- 82407_ Acquired Architect God Chip D. 82408_ Dropped Exp. Energy Well. 82409_ Dropped Exp. Matter Compressor. 82411_ Extracted 12 energy. 82412_ Acquired Exp. Energy Well. 82421_ Dropped Adv. Armor Integrity Analyzer. 82422_ Acquired Exp. Matter Compressor. 82424_ Acquired Architect God Chip D. 82433_ Extracted 12 energy. 82459_ Dropped Thermal Barrier. 82460_ Dropped Exp. Force Field. 82460_ Acquired Architect God Chip A. 82473_ Extracted 12 energy. 83054_ Quantum Shear penetrates Wall. 83074_ Quantum Shear penetrates Earth. 83077_ Quantum Shear penetrates Wall. 83578_ Extracted 12 energy. 83702_ Warped through subspace, drawn to slip node. 83702_ EXIT=FOUND 83705_ Acquired Architect God Chip D. Map ----- +----------------------------------------------------+ | | | | | | | | | | | | | | | | | | | | | | | | | | | | | | | | | ?????????????????????????????????????????????????? | | ?????????????????????????????????????????????????? | | ?????????????????????????????????????????????????? | | ?????????????????????????????????????????????????? | | ?????????????????????????????????????????????????? | | ?????????????????????????????????????????????????? | | ????????????????????????###??????????????????????? | | ???????????????????????## ##?????????????????????? | | ???????????????????????# #?????????????????????? | | ???????????????????????# @ #?????????????????????? | | ??????????????????????## #?????????????????????? | | ??????????????????????# #?????????????????????? | | ??????????????????????# ##?????????????????????? | | ??????????????????????## #?????????????????????? | | ??????????????????????# #?????????????????????? | | ??????????????????????# ##?????????????????????? | | ??????????????????????# < #?????????????????????? | | ??????????????????????# ##?????????????????????? | | ??????????????????????## #??????????????????????? | | ???????????????????????####??????????????????????? | | ?????????????????????????????????????????????????? | | ?????????????????????????????????????????????????? | | ?????????????????????????????????????????????????? | | ?????????????????????????????????????????????????? | | ?????????????????????????????????????????????????? | | ?????????????????????????????????????????????????? | | ?????????????????????????????????????????????????? | | ?????????????????????????????????????????????????? | | ?????????????????????????????????????????????????? | | ?????????????????????????????????????????????????? | | ?????????????????????????????????????????????????? | | ?????????????????????????????????????????????????? | | ?????????????????????????????????????????????????? | | ?????????????????????????????????????????????????? | +----------------------------------------------------+ Best States ------------- Heat Dissipation 150 Coolant Potential 120 Energy Generation 91 Energy Capacity 1950 Matter Stores 508 Matter Capacity 800 Sight Range 16 Robot Scan Range 30 Terrain Scan Density 10 Jamming Range 22 Additional Mass Support 20 Armor Coverage 3200 Resistance: KI 40 Resistance: TH 75 Resistance: EM 100 Core Shielding 40 Weapon Shielding 90 Weapon Cycling 30 Evasion (%) 42 Targeting Accuracy 24 Target Analysis 12 Armor Integrity Analysis 90 Recoil Reduction 3 Particle Charging 30 Kinecelleration 50 Offensive Hacking 100 Defensive Hacking 100 Item Schematics ----------------- Hcp. Storage Unit | -10/Materials | Hacked Lrg. Storage Unit | -10/Materials | Hacked Exp. Sensor Array | -9/Materials | Scanalyzed Humpback | -8/Materials | Scanalyzed Armor Integrity Analyzer | -8/Materials | Hacked Cld. Gravmag System | -7/Factory | Scanalyzed Combat Drone Bay | -7/Data Miner | Free Lgt. Regenerative Plating | -7/Data Miner | Free Exp. Transmission Jammer | -7/Data Miner | Free Tactical Coordination Suite | -7/Data Miner | Free Exp. ECM Suite | -7/Data Miner | Free Plasma Sword | -7/Data Miner | Free Hvy. Reactive Plating | -6/Factory | Hacked Matter Compressor | -6/Factory | Hacked Adv. Armor Integrity Analyzer | -5/Factory | Hacked Exp. Signal Interpreter | -5/Factory | Hacked EM Dispersion Field | -5/Factory | Scanalyzed Assault Drone Bay | -5/Zhirov | Free Exp. Optical Array | -5/Zhirov | Free Exp. Heat Sink | -5/Zhirov | Free Imp. Arc Thrower | -5/Zhirov | Free Centrium Wheel | -4/Factory | Scanalyzed Exp. Weapon Shielding | -3/Quarantine | Scanalyzed Quantum Capacitor | -3/Section 7 | Hacked Exp. Biometal Heavy Treads | -3/Section 7 | Scanalyzed Hvy. Regenerative Plating | -2/Testing | Hacked Exp. Force Field | -2/Testing | Scanalyzed Robot Schematics ------------------ S-27 Virus | -7/Data Miner | Free G-50 Soldier | -7/Data Miner | Free H-66 Slayer | -7/Data Miner | Free P-70 Sage | -7/Data Miner | Free I-36 Angel | -7/Data Miner | Free Fabricated ------------ Hcp. Storage Unit | x1 | -7/Factory Humpback | x1 | -7/Factory Humpback | x1 | -7/Factory Humpback | x1 | -6/Factory Combat Drone Bay | x1 | -6/Factory Humpback | x1 | -5/Factory Humpback | x1 | -5/Factory Hvy. Reactive Plating | x1 | -5/Factory Armor Integrity Analyzer | x1 | -5/Factory Exp. Signal Interpreter | x1 | -5/Factory Centrium Wheel | x2 | -4/Factory Hcp. Storage Unit | x1 | -4/Factory Humpback | x1 | -4/Factory Hvy. Reactive Plating | x1 | -4/Factory Assault Drone Bay | x1 | -4/Factory Exp. Transmission Jammer | x1 | -4/Factory Tactical Coordination Suite | x1 | -4/Factory Adv. Armor Integrity Analyzer | x1 | -3/Research Hcp. Storage Unit | x1 | -3/Research Humpback | x1 | -3/Research Exp. Force Field | x1 | -2/Testing Exp. Force Field | x1 | -1/Access Exp. Biometal Heavy Treads | x1 | -1/Access Alien Tech Used ----------------- Integrated Dissipator Core Cannon Subatomic Replicator Sigix Broadsword Matter Drive Dimensional Node Initializer Integrated Reactor Core Membrane Sigix Quantum Sheargun Integrity Redistributor LRC Insulator LRC Energy Well Transdimensional Reconstructor Integrated Heat Negator Core Regenerator High-powered Transdimensional Reconstructor Modified Quantum Sheargun Achievements -------------- l33t h4x0r Challenges ------------ None Game ------ Seed VisualScatterFilter Manual? 0 Play Time 18:51:09 Cumulative 1137.6 hours Start 2020.09.15 @ 20:38:05 End 2020.09.20 @ 04:01:45 Sessions 9 Manual Loads 0 Difficulty Rogue Special Mode None Game No. 418 Rogue 418 Adventurer 0 Explorer 0 Win Type 1 Total 26 Types 13/2/7/0/0/0/4/0/0 Lore% 94 Gallery% 95 Achievement% 84 Wizard Run 0 Options --------- ASCII 0 Keyboard 0 Movement Vi Keybinds 0 Fullscreen 0 Font 12/Crisp Map View 76x50 Tactical HUD 1 Map Filters NONE Filters NONE Steam 1 RUN: 3cb7e144-5d36-4d42-a55d-9f758274064a